EXTRACTDATE,PUBLISHERURI,ORGANISATIONLABEL,EXPENSE DATE,VENDOR NAME ,COST CENTRE NAME,SUBJECTIVE DESCRIPTION,REQUESTED EXPENSE AMOUNT
07/03/2024,,LB of Brent,01/12/2023,Flickr Pro Monthly,Digital Comms,Supplies and Services Expenditure,6.99
07/03/2024,,LB of Brent,01/12/2023,Amznmktplace,Reablement - Operational,Stationery,41.32
07/03/2024,,LB of Brent,01/12/2023,Asda Superstore 04881,Smart Team,Supplies and Services Expenditure,29.13
07/03/2024,,LB of Brent,01/12/2023,Travelodge Gb0000,Housing Needs Accommodation Team,Supplies and Services Expenditure,583.39
07/03/2024,,LB of Brent,01/12/2023,The Central Hotel,Housing Needs Accommodation Team,Supplies and Services Expenditure,775
07/03/2024,,LB of Brent,01/12/2023,Gsuite_bmsstaff.Com,Brent Music Service,Supplies and Services Expenditure,92
07/03/2024,,LB of Brent,01/12/2023,Amznmktplace,Civic Centre Conference and Events,Stationery,8.99
07/03/2024,,LB of Brent,01/12/2023,Amazon* 205-4764958-13,Alperton Cemetery,Stationery,40
07/03/2024,,LB of Brent,01/12/2023,Uk Power Networks,V5 Repairs - Structural,Environmental Services,-1501
07/03/2024,,LB of Brent,02/12/2023,Tesco Stores 2122,Short Break Centre,Supplies and Services Expenditure,99.56
07/03/2024,,LB of Brent,02/12/2023,Premier Inn,Housing Needs Accommodation Team,Supplies and Services Expenditure,-739.5
07/03/2024,,LB of Brent,02/12/2023,Amazon Prime,Willows Nursery,Supplies and Services Expenditure,7.49
07/03/2024,,LB of Brent,02/12/2023,Amazon* 205-2696970-36,Customer Access Improvement and Performance,Stationery,101.34
07/03/2024,,LB of Brent,04/12/2023,Dyetts Locks & Keys,Estate Cleaning Team,Supplies and Services Expenditure,7.98
07/03/2024,,LB of Brent,04/12/2023,Asda Groceries Online,Willows Nursery,Supplies and Services Expenditure,50.93
07/03/2024,,LB of Brent,04/12/2023,Travelodge Gb0000,Early Years Central Services,Supplies and Services Expenditure,68.32
07/03/2024,,LB of Brent,04/12/2023,Amznbusiness,Gordon Brown Outdoor Education Centre,Supplies and Services Expenditure,26.89
07/03/2024,,LB of Brent,04/12/2023,Asda Superstore 04881,Mayors Prev Yrs,Supplies and Services Expenditure,25
07/03/2024,,LB of Brent,04/12/2023,Costco Wholesale #128,Mayors Prev Yrs,Supplies and Services Expenditure,94.44
07/03/2024,,LB of Brent,04/12/2023,Intellisoftware Ltd,Brent Sicts,Supplies and Services Expenditure,10
07/03/2024,,LB of Brent,04/12/2023,Amznmktplace,Lewisham IT Shared Service,Supplies and Services Expenditure,40.48
07/03/2024,,LB of Brent,04/12/2023,Amazon.Co.Uk,Customer Access Improvement and Performance,Stationery,5.2
07/03/2024,,LB of Brent,04/12/2023,Amazon.Co.Uk,Community and Prevention Team,Stationery,5.85
07/03/2024,,LB of Brent,04/12/2023,Brent Council,Parish Liaison,Supplies and Services Expenditure,11
07/03/2024,,LB of Brent,04/12/2023,Amazon* 203-1029638-47,Brent Music Service,Supplies and Services Expenditure,20
07/03/2024,,LB of Brent,04/12/2023,Trainline,Early Years Central Services,Supplies and Services Expenditure,34
07/03/2024,,LB of Brent,04/12/2023,Travelodge Gb0000,Early Years Central Services,Supplies and Services Expenditure,-49.99
07/03/2024,,LB of Brent,05/12/2023,Microsoft G033629503,Brent Sicts,Supplies and Services Expenditure,4.9
07/03/2024,,LB of Brent,05/12/2023,Wickes Basingstoke,Gordon Brown Outdoor Education Centre,Supplies and Services Expenditure,174.2
07/03/2024,,LB of Brent,05/12/2023,Post Office Counter,Gordon Brown Outdoor Education Centre,Supplies and Services Expenditure,244.3
07/03/2024,,LB of Brent,05/12/2023,Travelodge Gb0000,Housing Needs Accommodation Team,Supplies and Services Expenditure,433.44
07/03/2024,,LB of Brent,05/12/2023,Travelodge Gb0000,Housing Needs Accommodation Team,Supplies and Services Expenditure,717.43
07/03/2024,,LB of Brent,05/12/2023,Travelodge Gb0000,Housing Needs Accommodation Team,Supplies and Services Expenditure,815.43
07/03/2024,,LB of Brent,05/12/2023,Travelodge Gb0000,Housing Needs Accommodation Team,Supplies and Services Expenditure,881.44
07/03/2024,,LB of Brent,05/12/2023,Travelodge Gb0000,Housing Needs Accommodation Team,Supplies and Services Expenditure,948.43
07/03/2024,,LB of Brent,05/12/2023,Viking,Civic Centre Conference and Events,Stationery,245.32
07/03/2024,,LB of Brent,05/12/2023,Costco Wholesale #128,Mayors Prev Yrs,Supplies and Services Expenditure,25.12
07/03/2024,,LB of Brent,05/12/2023,Www.Local.Gov.Uk,Member Development,Supplies and Services Expenditure,118.8
07/03/2024,,LB of Brent,05/12/2023,Intellisoftware Ltd,Brent Sicts,Supplies and Services Expenditure,10
07/03/2024,,LB of Brent,05/12/2023,Amznmktplace,Client Affairs,Stationery,13.98
07/03/2024,,LB of Brent,05/12/2023,Amznmktplace,Client Affairs,Stationery,19.78
07/03/2024,,LB of Brent,05/12/2023,Amznmktplace,Willesden New Cemetry,Stationery,23.89
07/03/2024,,LB of Brent,05/12/2023,Amznmktplace,Willesden New Cemetry,Stationery,31.34
07/03/2024,,LB of Brent,05/12/2023,Amznmktplace,Willesden New Cemetry,Stationery,37.36
07/03/2024,,LB of Brent,05/12/2023,Amazon.Co.Uk,Cemeteries Admin,Stationery,111.1
07/03/2024,,LB of Brent,06/12/2023,Tesco Stores 2122,Short Break Centre,Supplies and Services Expenditure,143.5
07/03/2024,,LB of Brent,06/12/2023,Facebk Xsf9sw3hq2,Corporate Communications Unit,Supplies and Services Expenditure,500
07/03/2024,,LB of Brent,06/12/2023,B & Q 1066,Residential and Nursing Team,Supplies and Services Expenditure,87.51
07/03/2024,,LB of Brent,06/12/2023,Premier Inn,Housing Needs Accommodation Team,Supplies and Services Expenditure,703.8
07/03/2024,,LB of Brent,06/12/2023,Travelodge Gb0000,Housing Needs Accommodation Team,Supplies and Services Expenditure,856.4
07/03/2024,,LB of Brent,06/12/2023,Travelodge Gb0000,Housing Needs Accommodation Team,Supplies and Services Expenditure,915.86
07/03/2024,,LB of Brent,06/12/2023,Sra,Legal Support,Supplies and Services Expenditure,289
07/03/2024,,LB of Brent,06/12/2023,Costco Wholesale #128,Mayors Prev Yrs,Supplies and Services Expenditure,20.97
07/03/2024,,LB of Brent,06/12/2023,Amznmktplace,Legal Support,Stationery,15.99
07/03/2024,,LB of Brent,06/12/2023,Amznmktplace,Willesden New Cemetry,Stationery,18.89
07/03/2024,,LB of Brent,06/12/2023,Amznmktplace,Special Projects - Schools,Stationery,144.95
07/03/2024,,LB of Brent,06/12/2023,Bkg*hotel At Booking.C,Leaving Care Team C,Client Subsistence,140
07/03/2024,,LB of Brent,06/12/2023,Amznmktplace,CCTV,Stationery,-3.5
07/03/2024,,LB of Brent,06/12/2023,Kahoot,Transformation Team,Financial Services,354
07/03/2024,,LB of Brent,07/12/2023,Amznmktplace,Short Break Centre,Supplies and Services Expenditure,13.96
07/03/2024,,LB of Brent,07/12/2023,Amznmktplace,Short Break Centre,Supplies and Services Expenditure,6.99
07/03/2024,,LB of Brent,07/12/2023,Amznmktplace,Short Break Centre,Supplies and Services Expenditure,5.85
07/03/2024,,LB of Brent,07/12/2023,Shell Kilburn,Estate Cleaning Team,Supplies and Services Expenditure,7.64
07/03/2024,,LB of Brent,07/12/2023,Tfl Oyster Auto Topup,TA and Supported Living Team,Supplies and Services Expenditure,20
07/03/2024,,LB of Brent,07/12/2023,Bkg*hotel At Booking.C,Childrens Social Care Business Support,Supplies and Services Expenditure,-140
07/03/2024,,LB of Brent,07/12/2023,Amznmktplace,Operational Costs - Facilities,Supplies and Services Expenditure,31.44
07/03/2024,,LB of Brent,07/12/2023,Sainsburys Wembley,Early Years Central Services,Supplies and Services Expenditure,46.25
07/03/2024,,LB of Brent,07/12/2023,Amazon Prime,Brent Sicts,Supplies and Services Expenditure,7.49
07/03/2024,,LB of Brent,07/12/2023,Amznmktplace,Graduate Development Programme - Level 5,Stationery,7.99
07/03/2024,,LB of Brent,07/12/2023,Amznmktplace,Graduate Development Programme - Level 5,Stationery,3.88
07/03/2024,,LB of Brent,07/12/2023,Amznmktplace,Audit and Investigations,Stationery,12.39
07/03/2024,,LB of Brent,07/12/2023,Amznmktplace,Political Group Support,Stationery,14.99
07/03/2024,,LB of Brent,07/12/2023,Amznmktplace,Graduate Development Programme - Level 5,Stationery,30
07/03/2024,,LB of Brent,07/12/2023,Amznmktplace,Cemeteries Admin,Stationery,69.98
07/03/2024,,LB of Brent,07/12/2023,Amznmktplace,ICT Client and Applications Support,Stationery,99.98
07/03/2024,,LB of Brent,07/12/2023,Amznmktplace,Graduate Development Programme - Level 5,Stationery,109
07/03/2024,,LB of Brent,07/12/2023,Amznmktplace,Audit and Investigations,Stationery,159.98
07/03/2024,,LB of Brent,07/12/2023,The Mj/Hemming Group L,Chief Execs,Financial Services,199
07/03/2024,,LB of Brent,07/12/2023,Amznmktplace,Housing Support Team,Stationery,1608
07/03/2024,,LB of Brent,07/12/2023,Expedia Expedia 727090506,Leaving Care Team C,Client Subsistence,95.21
07/03/2024,,LB of Brent,07/12/2023,Amznmktplace,Afghan Resettlement Scheme,Supplies and Services Expenditure,590.68
07/03/2024,,LB of Brent,08/12/2023,Tesco Stores 2122,Short Break Centre,Supplies and Services Expenditure,89.81
07/03/2024,,LB of Brent,08/12/2023,Shell Willesden,Estate Cleaning Team,Supplies and Services Expenditure,59.64
07/03/2024,,LB of Brent,08/12/2023,Www.Argos.Co.Uk,Residential and Nursing Team,Supplies and Services Expenditure,143.95
07/03/2024,,LB of Brent,08/12/2023,Amazon Prime,Childrens Social Care Business Support,Supplies and Services Expenditure,7.49
07/03/2024,,LB of Brent,08/12/2023,Amznmktplace,Parish Liaison,Stationery,2.49
07/03/2024,,LB of Brent,08/12/2023,Www.Reddrivingschool.Com,Afghan Resettlement Scheme,Social Community Care Supplies and Services - Adult,169.57
07/03/2024,,LB of Brent,08/12/2023,Speedy Sameday Courier,Political Group Support,Stationery,61.35
07/03/2024,,LB of Brent,09/12/2023,Amznmktplace,Afghan Resettlement Scheme,Supplies and Services Expenditure,-0.83
07/03/2024,,LB of Brent,09/12/2023,Amznmktplace,Afghan Resettlement Scheme,Supplies and Services Expenditure,-0.83
07/03/2024,,LB of Brent,09/12/2023,Amznmktplace,Afghan Resettlement Scheme,Supplies and Services Expenditure,-1.66
07/03/2024,,LB of Brent,09/12/2023,Amznmktplace,Afghan Resettlement Scheme,Social Community Care Supplies and Services - Adult,227.68
07/03/2024,,LB of Brent,09/12/2023,Travelodge Gb0000,Emergency Planning,Facilities and Management Services,484.44
07/03/2024,,LB of Brent,10/12/2023,Amznmktplace,Short Break Centre,Supplies and Services Expenditure,15.95
07/03/2024,,LB of Brent,10/12/2023,Completesave.Co.Uk,Residential and Nursing Team,Supplies and Services Expenditure,15
07/03/2024,,LB of Brent,10/12/2023,Hobbycraft,Willows Nursery,Supplies and Services Expenditure,2
07/03/2024,,LB of Brent,10/12/2023,Amznmktplace,CCTV,Stationery,7.49
07/03/2024,,LB of Brent,10/12/2023,Amznmktplace,Graduate Development Programme - Level 5,Stationery,19.98
07/03/2024,,LB of Brent,10/12/2023,Amznmktplace,Afghan Resettlement Scheme,Supplies and Services Expenditure,-0.83
07/03/2024,,LB of Brent,11/12/2023,Screwfix Dir Ltd,Gordon Brown Outdoor Education Centre,Supplies and Services Expenditure,98.96
07/03/2024,,LB of Brent,11/12/2023,Www.Argos.Co.Uk,Smart Team,Supplies and Services Expenditure,11.49
07/03/2024,,LB of Brent,11/12/2023,Www.Datatracks.Co.Uk,Core Finance,Supplies and Services Expenditure,60
07/03/2024,,LB of Brent,11/12/2023,Travelodge Gb0000,Housing Needs Accommodation Team,Supplies and Services Expenditure,717.99
07/03/2024,,LB of Brent,11/12/2023,Asda Groceries Online,Willows Nursery,Supplies and Services Expenditure,60.77
07/03/2024,,LB of Brent,11/12/2023,Marks&spencer Plc Saca,Early Years Central Services,Supplies and Services Expenditure,8.15
07/03/2024,,LB of Brent,11/12/2023,Lul Ticket Machine,Brent Family Solutions,Supplies and Services Expenditure,5
07/03/2024,,LB of Brent,11/12/2023,Lul Ticket Machine,Brent Family Solutions,Supplies and Services Expenditure,5
07/03/2024,,LB of Brent,11/12/2023,Lul Ticket Machine,Brent Family Solutions,Supplies and Services Expenditure,5
07/03/2024,,LB of Brent,11/12/2023,Lul Ticket Machine,Brent Family Solutions,Supplies and Services Expenditure,5
07/03/2024,,LB of Brent,11/12/2023,Lul Ticket Machine,Brent Family Solutions,Supplies and Services Expenditure,5
07/03/2024,,LB of Brent,11/12/2023,Lul Ticket Machine,Brent Family Solutions,Supplies and Services Expenditure,5
07/03/2024,,LB of Brent,11/12/2023,Lul Ticket Machine,Brent Family Solutions,Supplies and Services Expenditure,20
07/03/2024,,LB of Brent,11/12/2023,Lul Ticket Machine,Brent Family Solutions,Supplies and Services Expenditure,20
07/03/2024,,LB of Brent,11/12/2023,Lul Ticket Machine,Brent Family Solutions,Supplies and Services Expenditure,20
07/03/2024,,LB of Brent,11/12/2023,Lul Ticket Machine,Brent Family Solutions,Supplies and Services Expenditure,20
07/03/2024,,LB of Brent,11/12/2023,Lul Ticket Machine,Brent Family Solutions,Supplies and Services Expenditure,20
07/03/2024,,LB of Brent,11/12/2023,Lul Ticket Machine,Brent Family Solutions,Supplies and Services Expenditure,20
07/03/2024,,LB of Brent,11/12/2023,Prezzee/Gbcffbb5e3,Brent Family Solutions,Supplies and Services Expenditure,50
07/03/2024,,LB of Brent,11/12/2023,Amznmktplace,Brent Family Solutions,Supplies and Services Expenditure,96
07/03/2024,,LB of Brent,11/12/2023,Prezzee/Gb8a37c881,Brent Family Solutions,Supplies and Services Expenditure,100
07/03/2024,,LB of Brent,11/12/2023,Amazon.Co.Uk,Brent Family Solutions,Supplies and Services Expenditure,100
07/03/2024,,LB of Brent,11/12/2023,Amznmktplace,Brent Family Solutions,Supplies and Services Expenditure,149.45
07/03/2024,,LB of Brent,11/12/2023,Amznmktplace,Brent Family Solutions,Supplies and Services Expenditure,168.67
07/03/2024,,LB of Brent,11/12/2023,Ranjita Ltd,Turnaround,Supplies and Services Expenditure,195.5
07/03/2024,,LB of Brent,11/12/2023,Amznmktplace,Brent Family Solutions,Supplies and Services Expenditure,238.05
07/03/2024,,LB of Brent,11/12/2023,Www.Westminster.Gov.Uk,Housing Needs Housing Options Team,Supplies and Services Expenditure,14
07/03/2024,,LB of Brent,11/12/2023,Www2.@warwick.Ac.Uk,Political Group Support,Human Resources - Training and Conferences,96
07/03/2024,,LB of Brent,11/12/2023,Www2.@warwick.Ac.Uk,Political Group Support,Human Resources - Training and Conferences,96
07/03/2024,,LB of Brent,11/12/2023,Www.Local.Gov.Uk,Political Group Support,Human Resources - Training and Conferences,180
07/03/2024,,LB of Brent,11/12/2023,Currys Online,Brent Sicts Consumables,Information Communication Technology,165.83
07/03/2024,,LB of Brent,11/12/2023,Member Discounts,Homes for Ukraine Scheme,Financial Services,89.3
07/03/2024,,LB of Brent,11/12/2023,Currys Online,Transformation Director,Stationery,1199
07/03/2024,,LB of Brent,11/12/2023,Find A Will,Legal Support,Supplies and Services Expenditure,1.5
07/03/2024,,LB of Brent,11/12/2023,Sainsburys S/mkts,Heritage,Arts and Leisure Services,36.82
07/03/2024,,LB of Brent,11/12/2023,Travelodge Gb0000,Repairs Management Team,Financial Services,1791.62
07/03/2024,,LB of Brent,11/12/2023,Tvlicensing.Co.Uk,Civic Centre - Av,Facilities and Management Services - Property Management,159
07/03/2024,,LB of Brent,12/12/2023,Tesco Stores 2122,Short Break Centre,Supplies and Services Expenditure,151.82
07/03/2024,,LB of Brent,12/12/2023,Ppoint_*newsmart 80414,Smart Team,Supplies and Services Expenditure,20
07/03/2024,,LB of Brent,12/12/2023,Moj Ospt Ecom,Housing Support Team,Supplies and Services Expenditure,40
07/03/2024,,LB of Brent,12/12/2023,Moj Ospt Ecom,Housing Support Team,Supplies and Services Expenditure,40
07/03/2024,,LB of Brent,12/12/2023,Moj Ospt Ecom,Housing Support Team,Supplies and Services Expenditure,40
07/03/2024,,LB of Brent,12/12/2023,Moj Ospt Ecom,Housing Support Team,Supplies and Services Expenditure,40
07/03/2024,,LB of Brent,12/12/2023,Asda Superstore 04881,Willows Nursery,Supplies and Services Expenditure,4
07/03/2024,,LB of Brent,12/12/2023,Costco Wholesale #128,Brent Family Solutions,Supplies and Services Expenditure,26.82
07/03/2024,,LB of Brent,12/12/2023,Sainsburys Wembley,Brent Family Solutions,Supplies and Services Expenditure,30
07/03/2024,,LB of Brent,12/12/2023,Prezzee/Gb1ce88b7c,Brent Family Solutions,Supplies and Services Expenditure,50
07/03/2024,,LB of Brent,12/12/2023,Tesco Stores 2122,Brent Family Solutions,Supplies and Services Expenditure,200
07/03/2024,,LB of Brent,12/12/2023,Asda Superstore 04881,Public Health Operational,Stationery,15.3
07/03/2024,,LB of Brent,12/12/2023,Amznmktplace,Homes for Ukraine Scheme,Stationery,9.29
07/03/2024,,LB of Brent,12/12/2023,Amznmktplace,Homes for Ukraine Scheme,Stationery,12.99
07/03/2024,,LB of Brent,12/12/2023,Amznmktplace,Homes for Ukraine Scheme,Stationery,9.99
07/03/2024,,LB of Brent,12/12/2023,Amznmktplace,Homes for Ukraine Scheme,Stationery,11.75
07/03/2024,,LB of Brent,12/12/2023,Amznmktplace,Homes for Ukraine Scheme,Stationery,11.99
07/03/2024,,LB of Brent,12/12/2023,Amznmktplace,Homes for Ukraine Scheme,Stationery,6.95
07/03/2024,,LB of Brent,12/12/2023,Amznmktplace,Homes for Ukraine Scheme,Stationery,11.99
07/03/2024,,LB of Brent,12/12/2023,Amznmktplace,Homes for Ukraine Scheme,Stationery,7.49
07/03/2024,,LB of Brent,12/12/2023,Amznmktplace,Homes for Ukraine Scheme,Stationery,13.9
07/03/2024,,LB of Brent,12/12/2023,Amznmktplace,Homes for Ukraine Scheme,Stationery,5.99
07/03/2024,,LB of Brent,12/12/2023,Amznmktplace,Homes for Ukraine Scheme,Stationery,12.99
07/03/2024,,LB of Brent,12/12/2023,Amznmktplace,Homes for Ukraine Scheme,Stationery,3.99
07/03/2024,,LB of Brent,12/12/2023,Amznmktplace,Homes for Ukraine Scheme,Stationery,11.94
07/03/2024,,LB of Brent,12/12/2023,Amazon* 205-6142601-16,Customer Access Improvement and Performance,Stationery,266.63
07/03/2024,,LB of Brent,12/12/2023,Amazon* 205-6142601-16,Customer Access Improvement and Performance,Stationery,266.63
07/03/2024,,LB of Brent,12/12/2023,Lb Barnett Ivr Payment,I4B Property Management,Financial Services,602.16
07/03/2024,,LB of Brent,12/12/2023,Jacobs,I4B Property Management,Financial Services,666.76
07/03/2024,,LB of Brent,12/12/2023,Www.Argos.Co.Uk,Afghan Resettlement Scheme,Social Community Care Supplies and Services - Adult,272.46
07/03/2024,,LB of Brent,12/12/2023,Primark,Smart Team,Supplies and Services Expenditure,74
07/03/2024,,LB of Brent,12/12/2023,Amazon* 205-6142601-16,Customer Access Improvement and Performance,Stationery,133.32
07/03/2024,,LB of Brent,13/12/2023,Amznmktplace,East Long-Term Team 3,Supplies and Services Expenditure,14.99
07/03/2024,,LB of Brent,13/12/2023,Tesco Stores 2122,Brent Family Solutions,Supplies and Services Expenditure,13.24
07/03/2024,,LB of Brent,13/12/2023,Clarkes Of London,Brent Family Solutions,Supplies and Services Expenditure,294
07/03/2024,,LB of Brent,13/12/2023,Clarkes Of London,Brent Family Solutions,Supplies and Services Expenditure,500
07/03/2024,,LB of Brent,13/12/2023,Clarkes Of London,Brent Family Solutions,Supplies and Services Expenditure,500
07/03/2024,,LB of Brent,13/12/2023,Amznmktplace,Cemeteries Admin,Stationery,2.49
07/03/2024,,LB of Brent,13/12/2023,Lunch Platters Deliver,Heritage,Arts and Leisure Services,142.8
07/03/2024,,LB of Brent,13/12/2023,Namesco,Brent Sicts,Information Communication Technology,50.96
07/03/2024,,LB of Brent,13/12/2023,Isaca,ICT Client and Applications Support,Information Communication Technology,176.92
07/03/2024,,LB of Brent,14/12/2023,Amznmktplace,Brent Music Service,Supplies and Services Expenditure,36.99
07/03/2024,,LB of Brent,14/12/2023,Notemachine,Reablement - Hdt Operational,Supplies and Services Expenditure,100
07/03/2024,,LB of Brent,14/12/2023,Amznmktplace,Short Break Centre,Supplies and Services Expenditure,20.52
07/03/2024,,LB of Brent,14/12/2023,Amznmktplace,Short Break Centre,Supplies and Services Expenditure,15.41
07/03/2024,,LB of Brent,14/12/2023,Moj Ospt Ecom,Housing Support Team,Supplies and Services Expenditure,40
07/03/2024,,LB of Brent,14/12/2023,L B Camden Int,Housing Support Team,Supplies and Services Expenditure,46
07/03/2024,,LB of Brent,14/12/2023,Ppl Prs Ltd,Willows Nursery,Supplies and Services Expenditure,130.82
07/03/2024,,LB of Brent,14/12/2023,Costco Wholesale #128,Brent Family Solutions,Supplies and Services Expenditure,41.81
07/03/2024,,LB of Brent,14/12/2023,Zoological Society Of Lon,Brent Family Solutions,Supplies and Services Expenditure,285
07/03/2024,,LB of Brent,14/12/2023,Amznmktplace,Gordon Brown Outdoor Education Centre,Supplies and Services Expenditure,28.88
07/03/2024,,LB of Brent,14/12/2023,Gb Total Equestrian Limit,Gordon Brown Outdoor Education Centre,Supplies and Services Expenditure,236.25
07/03/2024,,LB of Brent,14/12/2023,Costco Wholesale #128,Public Health Operational,Catering,15.56
07/03/2024,,LB of Brent,14/12/2023,Costco Wholesale #128,Public Health Operational,Catering,29.97
07/03/2024,,LB of Brent,14/12/2023,Www.Ico.Org.Uk,First Wave Housing Property Management,Financial Services,40
07/03/2024,,LB of Brent,14/12/2023,Amznmktplace,Digital Post Room,Stationery,244.5
07/03/2024,,LB of Brent,14/12/2023,Ou Continuing Ed,Transformation Director,Human Resources - Training and Conferences,350
07/03/2024,,LB of Brent,15/12/2023,Miscellaneous Fee - Cash Handling Fee @ 2.95%,Reablement - Hdt Operational,Supplies and Services Expenditure,2.95
07/03/2024,,LB of Brent,15/12/2023,Dyetts Locks & Keys,Estate Cleaning Team,Supplies and Services Expenditure,4.99
07/03/2024,,LB of Brent,15/12/2023,Brent Parking,Estate Cleaning Team,Supplies and Services Expenditure,5
07/03/2024,,LB of Brent,15/12/2023,Ppoint_*good News 67060,Smart Team,Supplies and Services Expenditure,10
07/03/2024,,LB of Brent,15/12/2023,Costco Wholesale #128,Brent Family Solutions,Supplies and Services Expenditure,134.98
07/03/2024,,LB of Brent,15/12/2023,Amznmktplace,Transformation Team,Stationery,7.5
07/03/2024,,LB of Brent,15/12/2023,Amznmktplace,Digital Post Room,Stationery,8.99
07/03/2024,,LB of Brent,15/12/2023,Ukofficedirect.Co.,Climate Emergency Budget,Stationery,18.34
07/03/2024,,LB of Brent,15/12/2023,Amazon* 205-8288501-71,Infant Feeding,Stationery,60.15
07/03/2024,,LB of Brent,15/12/2023,Www.Parrs.Co.Uk,Civic Centre Conference and Events,Stationery,184.8
07/03/2024,,LB of Brent,15/12/2023,Posturite Ltd,Assessment,Stationery,677.84
07/03/2024,,LB of Brent,15/12/2023,Posturite Ltd,Assessment,Stationery,1368.92
07/03/2024,,LB of Brent,15/12/2023,Www.Argos.Co.Uk,Afghan Resettlement Scheme,Social Community Care Supplies and Services - Adult,209.12
07/03/2024,,LB of Brent,15/12/2023,Www.Argos.Co.Uk,Afghan Resettlement Scheme,Social Community Care Supplies and Services - Adult,397.46
07/03/2024,,LB of Brent,16/12/2023,Costco Wholesale #128,Short Break Centre,Supplies and Services Expenditure,72.34
07/03/2024,,LB of Brent,16/12/2023,Tesco Stores 2122,Short Break Centre,Supplies and Services Expenditure,126.79
07/03/2024,,LB of Brent,16/12/2023,Amznmktplace,Brent Family Solutions,Supplies and Services Expenditure,11.99
07/03/2024,,LB of Brent,16/12/2023,Amznmktplace,Community and Prevention Team,Stationery,9.9
07/03/2024,,LB of Brent,16/12/2023,Amznmktplace,Transformation Team,Stationery,12.85
07/03/2024,,LB of Brent,16/12/2023,Amznmktplace,Major Projects - South Kilburn,Stationery,52.43
07/03/2024,,LB of Brent,16/12/2023,Amznmktplace,Major Projects - South Kilburn,Stationery,69.99
07/03/2024,,LB of Brent,16/12/2023,Amznmktplace,Major Projects - South Kilburn,Stationery,9.92
07/03/2024,,LB of Brent,16/12/2023,Amznmktplace,Major Projects - South Kilburn,Stationery,13
07/03/2024,,LB of Brent,16/12/2023,Amznmktplace,Afghan Resettlement Scheme,Social Community Care Supplies and Services - Adult,219.02
07/03/2024,,LB of Brent,17/12/2023,Amznmktplace,Brent Family Solutions,Supplies and Services Expenditure,97.62
07/03/2024,,LB of Brent,17/12/2023,Amazon* 205-7559131-62,Legal Support,Stationery,14.79
07/03/2024,,LB of Brent,17/12/2023,Amznmktplace,Transformation Team,Stationery,5.79
07/03/2024,,LB of Brent,17/12/2023,Amznmktplace,Transformation Team,Stationery,4.59
07/03/2024,,LB of Brent,17/12/2023,Amznmktplace,Transformation Team,Stationery,7.97
07/03/2024,,LB of Brent,17/12/2023,Amazon.Co.Uk,Traffic Planning/Scheme Design,Stationery,19.98
07/03/2024,,LB of Brent,17/12/2023,Amznmktplace,Major Projects - South Kilburn,Stationery,15.19
07/03/2024,,LB of Brent,17/12/2023,Amznmktplace,Major Projects - South Kilburn,Stationery,13.92
07/03/2024,,LB of Brent,17/12/2023,Amznmktplace,Major Projects - South Kilburn,Stationery,49.06
07/03/2024,,LB of Brent,18/12/2023,C2e875301022k Ukvi,Reablement - Hdt Operational,Supplies and Services Expenditure,2239
07/03/2024,,LB of Brent,18/12/2023,Shell Wembley Park,Estate Cleaning Team,Supplies and Services Expenditure,29.96
07/03/2024,,LB of Brent,18/12/2023,Shell Kilburn,Estate Cleaning Team,Supplies and Services Expenditure,29.99
07/03/2024,,LB of Brent,18/12/2023,Argos Ltd,Estate Cleaning Team,Supplies and Services Expenditure,39.27
07/03/2024,,LB of Brent,18/12/2023,Amazon Prime,TA Property Management,Supplies and Services Expenditure,0.82
07/03/2024,,LB of Brent,18/12/2023,Scottish Power,NAIL Property Management,Supplies and Services Expenditure,83.33
07/03/2024,,LB of Brent,18/12/2023,Scottish Power,NAIL Property Management,Supplies and Services Expenditure,83.33
07/03/2024,,LB of Brent,18/12/2023,Scottish Power,NAIL Property Management,Supplies and Services Expenditure,166.67
07/03/2024,,LB of Brent,18/12/2023,Scottish Power,NAIL Property Management,Supplies and Services Expenditure,166.67
07/03/2024,,LB of Brent,18/12/2023,Asda Groceries Online,Willows Nursery,Supplies and Services Expenditure,48.23
07/03/2024,,LB of Brent,18/12/2023,Tesco Gift Card,Brent Family Solutions,Supplies and Services Expenditure,40
07/03/2024,,LB of Brent,18/12/2023,Asda Stores Ltd,Brent Family Solutions,Supplies and Services Expenditure,70
07/03/2024,,LB of Brent,18/12/2023,Www.Papajohn S.Co.Uk,Brent Family Solutions,Supplies and Services Expenditure,109.94
07/03/2024,,LB of Brent,18/12/2023,Www.Argos.Co.Uk,Strategy and Partnerships,Domestic Goods,41.95
07/03/2024,,LB of Brent,18/12/2023,Amznmktplace,Digital Post Room,Stationery,9.3
07/03/2024,,LB of Brent,18/12/2023,Ukssb,Transformation Team,Human Resources - Training and Conferences,100
07/03/2024,,LB of Brent,19/12/2023,Atlassian,Digital Comms,Supplies and Services Expenditure,9.78
07/03/2024,,LB of Brent,19/12/2023,Amznmktplace,TA Property Management,Supplies and Services Expenditure,10.82
07/03/2024,,LB of Brent,19/12/2023,British Gas Online,NAIL Property Management,Supplies and Services Expenditure,82.5
07/03/2024,,LB of Brent,19/12/2023,British Gas Online,TA Property Management,Supplies and Services Expenditure,94.29
07/03/2024,,LB of Brent,19/12/2023,British Gas Online,TA Property Management,Supplies and Services Expenditure,99
07/03/2024,,LB of Brent,19/12/2023,British Gas Online,TA Property Management,Supplies and Services Expenditure,94.29
07/03/2024,,LB of Brent,19/12/2023,British Gas Online,TA Property Management,Supplies and Services Expenditure,94.29
07/03/2024,,LB of Brent,19/12/2023,British Gas Online,TA Property Management,Supplies and Services Expenditure,94.29
07/03/2024,,LB of Brent,19/12/2023,Sportsdirect 304,Bridge Park Facilities,Supplies and Services Expenditure,38.97
07/03/2024,,LB of Brent,19/12/2023,Sportsdirect 370,Bridge Park Facilities,Supplies and Services Expenditure,70.97
07/03/2024,,LB of Brent,19/12/2023,Moj Ospt Ecom,Housing Support Team,Supplies and Services Expenditure,40
07/03/2024,,LB of Brent,19/12/2023,Moj Ospt Ecom,Housing Support Team,Supplies and Services Expenditure,40
07/03/2024,,LB of Brent,19/12/2023,Moj Ospt Ecom,Housing Support Team,Supplies and Services Expenditure,40
07/03/2024,,LB of Brent,19/12/2023,Costco Wholesale #128,Brent Family Solutions,Supplies and Services Expenditure,38.76
07/03/2024,,LB of Brent,19/12/2023,Costco Wholesale #128,Brent Family Solutions,Supplies and Services Expenditure,39.96
07/03/2024,,LB of Brent,19/12/2023,Asda Superstore 04881,Brent Family Solutions,Supplies and Services Expenditure,59.28
07/03/2024,,LB of Brent,19/12/2023,Costco Wholesale #128,Brent Family Solutions,Supplies and Services Expenditure,116.83
07/03/2024,,LB of Brent,19/12/2023,Sainsburys Wembley,Early Years Central Services,Supplies and Services Expenditure,200
07/03/2024,,LB of Brent,19/12/2023,Amazon.Co.Uk,Social Services Directorate,Stationery,8.38
07/03/2024,,LB of Brent,19/12/2023,Amznmktplace,Transformation Director,Stationery,5.93
07/03/2024,,LB of Brent,19/12/2023,Amznmktplace,Transformation Director,Stationery,9.99
07/03/2024,,LB of Brent,19/12/2023,Posturite Ltd,Sfa (Adult Skills Budget),Stationery,1350.34
07/03/2024,,LB of Brent,19/12/2023,Cargo,Heritage,Arts and Leisure Services,136.99
07/03/2024,,LB of Brent,19/12/2023,Tvlicensing.Co.Uk,NAIL Property Management,Supplies and Services Expenditure,132.5
07/03/2024,,LB of Brent,19/12/2023,Brent Council,Housing Support Team,Supplies and Services Expenditure,11
07/03/2024,,LB of Brent,20/12/2023,Facebk Qrae8x3hq2,Corporate Communications Unit,Supplies and Services Expenditure,500
07/03/2024,,LB of Brent,20/12/2023,Amznmktplace,Short Break Centre,Supplies and Services Expenditure,12.93
07/03/2024,,LB of Brent,20/12/2023,Amznmktplace,Short Break Centre,Supplies and Services Expenditure,13.99
07/03/2024,,LB of Brent,20/12/2023,Tesco Stores 2122,Short Break Centre,Supplies and Services Expenditure,118.7
07/03/2024,,LB of Brent,20/12/2023,British Gas Online,NAIL Property Management,Supplies and Services Expenditure,82.5
07/03/2024,,LB of Brent,20/12/2023,British Gas Online,NAIL Property Management,Supplies and Services Expenditure,99
07/03/2024,,LB of Brent,20/12/2023,British Gas Online,NAIL Property Management,Supplies and Services Expenditure,82.5
07/03/2024,,LB of Brent,20/12/2023,British Gas Online,NAIL Property Management,Supplies and Services Expenditure,99
07/03/2024,,LB of Brent,20/12/2023,Moj Ospt Ecom,Housing Support Team,Supplies and Services Expenditure,40
07/03/2024,,LB of Brent,20/12/2023,Hmctslondoncse077,Debt and Income,Supplies and Services Expenditure,945.5
07/03/2024,,LB of Brent,20/12/2023,Asda Superstore 04881,Brent Family Solutions,Supplies and Services Expenditure,20
07/03/2024,,LB of Brent,20/12/2023,Lul Ticket Machine,Brent Family Solutions,Supplies and Services Expenditure,30
07/03/2024,,LB of Brent,20/12/2023,Lul Ticket Machine,Brent Family Solutions,Supplies and Services Expenditure,30
07/03/2024,,LB of Brent,20/12/2023,Lul Ticket Machine,Brent Family Solutions,Supplies and Services Expenditure,30
07/03/2024,,LB of Brent,20/12/2023,Lul Ticket Machine,Brent Family Solutions,Supplies and Services Expenditure,30
07/03/2024,,LB of Brent,20/12/2023,Lul Ticket Machine,Brent Family Solutions,Supplies and Services Expenditure,30
07/03/2024,,LB of Brent,20/12/2023,Lul Ticket Machine,Brent Family Solutions,Supplies and Services Expenditure,30
07/03/2024,,LB of Brent,20/12/2023,Lul Ticket Machine,Brent Family Solutions,Supplies and Services Expenditure,30
07/03/2024,,LB of Brent,20/12/2023,Lul Ticket Machine,Brent Family Solutions,Supplies and Services Expenditure,30
07/03/2024,,LB of Brent,20/12/2023,Lul Ticket Machine,Brent Family Solutions,Supplies and Services Expenditure,30
07/03/2024,,LB of Brent,20/12/2023,Lul Ticket Machine,Brent Family Solutions,Supplies and Services Expenditure,30
07/03/2024,,LB of Brent,20/12/2023,Lul Ticket Machine,Brent Family Solutions,Supplies and Services Expenditure,30
07/03/2024,,LB of Brent,20/12/2023,Lul Ticket Machine,Brent Family Solutions,Supplies and Services Expenditure,30
07/03/2024,,LB of Brent,20/12/2023,Lul Ticket Machine,Brent Family Solutions,Supplies and Services Expenditure,30
07/03/2024,,LB of Brent,20/12/2023,Lul Ticket Machine,Brent Family Solutions,Supplies and Services Expenditure,30
07/03/2024,,LB of Brent,20/12/2023,Lul Ticket Machine,Brent Family Solutions,Supplies and Services Expenditure,30
07/03/2024,,LB of Brent,20/12/2023,Lul Ticket Machine,Brent Family Solutions,Supplies and Services Expenditure,30
07/03/2024,,LB of Brent,20/12/2023,Lul Ticket Machine,Brent Family Solutions,Supplies and Services Expenditure,30
07/03/2024,,LB of Brent,20/12/2023,Lul Ticket Machine,Brent Family Solutions,Supplies and Services Expenditure,30
07/03/2024,,LB of Brent,20/12/2023,Lul Ticket Machine,Brent Family Solutions,Supplies and Services Expenditure,30
07/03/2024,,LB of Brent,20/12/2023,Lul Ticket Machine,Brent Family Solutions,Supplies and Services Expenditure,30
07/03/2024,,LB of Brent,20/12/2023,Sainsburys Wembley,Brent Family Solutions,Supplies and Services Expenditure,100
07/03/2024,,LB of Brent,20/12/2023,Asda Superstore 04881,Brent Family Solutions,Supplies and Services Expenditure,100
07/03/2024,,LB of Brent,20/12/2023,Costco Wholesale #128,Brent Family Solutions,Supplies and Services Expenditure,102.01
07/03/2024,,LB of Brent,20/12/2023,Lul Ticket Machine,Brent Family Solutions,Supplies and Services Expenditure,285
07/03/2024,,LB of Brent,20/12/2023,Lul Ticket Machine,Brent Family Solutions,Supplies and Services Expenditure,285
07/03/2024,,LB of Brent,20/12/2023,Lul Ticket Machine,Brent Family Solutions,Supplies and Services Expenditure,285
07/03/2024,,LB of Brent,20/12/2023,Lul Ticket Machine,Brent Family Solutions,Supplies and Services Expenditure,285
07/03/2024,,LB of Brent,20/12/2023,Asda Superstore 04881,Brent Family Solutions,Supplies and Services Expenditure,350
07/03/2024,,LB of Brent,20/12/2023,Amznmktplace,Afghan Resettlement Scheme,Supplies and Services Expenditure,21.86
07/03/2024,,LB of Brent,20/12/2023,Amznmktplace,Afghan Resettlement Scheme,Supplies and Services Expenditure,931.57
07/03/2024,,LB of Brent,20/12/2023,London Stock Exchange Lei,Core Finance,Supplies and Services Expenditure,120
07/03/2024,,LB of Brent,20/12/2023,Isaca,Brent Sicts,Information Communication Technology,175.16
07/03/2024,,LB of Brent,21/12/2023,British Gas Online,NAIL Property Management,Supplies and Services Expenditure,82.5
07/03/2024,,LB of Brent,21/12/2023,British Gas Online,NAIL Property Management,Supplies and Services Expenditure,82.5
07/03/2024,,LB of Brent,21/12/2023,British Gas Online,NAIL Property Management,Supplies and Services Expenditure,82.5
07/03/2024,,LB of Brent,21/12/2023,British Gas Online,NAIL Property Management,Supplies and Services Expenditure,82.5
07/03/2024,,LB of Brent,21/12/2023,British Gas Online,NAIL Property Management,Supplies and Services Expenditure,82.5
07/03/2024,,LB of Brent,21/12/2023,Amznmktplace,Bridge Park Facilities,Supplies and Services Expenditure,15.82
07/03/2024,,LB of Brent,21/12/2023,Adobe Systems Software,Corporate Communications Unit,Supplies and Services Expenditure,43.32
07/03/2024,,LB of Brent,21/12/2023,Chartered Institute Of Le,Legal Support,Supplies and Services Expenditure,367
07/03/2024,,LB of Brent,21/12/2023,Amznmktplace,Civic Centre Conference and Events,Stationery,32.9
07/03/2024,,LB of Brent,21/12/2023,Posturite Ltd,Residential and Nursing Team,Stationery,195
07/03/2024,,LB of Brent,21/12/2023,Currys Online,Residential and Nursing Team,Stationery,318.99
07/03/2024,,LB of Brent,21/12/2023,Ou Continuing Ed,Transformation Director,Human Resources - Training and Conferences,350
07/03/2024,,LB of Brent,21/12/2023,Ou Continuing Ed,Transformation Director,Human Resources - Training and Conferences,350
07/03/2024,,LB of Brent,21/12/2023,Remarkable,Residential and Nursing Team,Stationery,427
07/03/2024,,LB of Brent,21/12/2023,Www.Neurobox.Co.Uk,Residential and Nursing Team,Stationery,5319.6
07/03/2024,,LB of Brent,21/12/2023,Amznmktplace,Social Services Directorate,Information Communication Technology,-69.99
07/03/2024,,LB of Brent,21/12/2023,Www.Argos.Co.Uk,Afghan Resettlement Scheme,Supplies and Services Expenditure,469.12
07/03/2024,,LB of Brent,21/12/2023,Dri*logi Store,Political Group Support,Stationery,109.99
07/03/2024,,LB of Brent,22/12/2023,Amznmktplace,Operational Costs - Facilities,Supplies and Services Expenditure,98.95
07/03/2024,,LB of Brent,22/12/2023,Post Office Counter,Short Break Centre,Supplies and Services Expenditure,11.82
07/03/2024,,LB of Brent,22/12/2023,Amazon Prime,TA Property Management,Supplies and Services Expenditure,-0.33
07/03/2024,,LB of Brent,22/12/2023,Scottish Power,NAIL Property Management,Supplies and Services Expenditure,166.67
07/03/2024,,LB of Brent,22/12/2023,Scottish Power,NAIL Property Management,Supplies and Services Expenditure,166.67
07/03/2024,,LB of Brent,22/12/2023,Amznmktplace,Operational Costs - Facilities,Supplies and Services Expenditure,29.86
07/03/2024,,LB of Brent,22/12/2023,Amznmktplace,Operational Costs - Facilities,Supplies and Services Expenditure,54.72
07/03/2024,,LB of Brent,22/12/2023,Amznmktplace,Cemeteries Admin,Stationery,-2.49
07/03/2024,,LB of Brent,22/12/2023,Amznmktplace,Civic Centre Conference and Events,Stationery,-32.9
07/03/2024,,LB of Brent,22/12/2023,Directnine,Elderly Home Care,Stationery,168.75
07/03/2024,,LB of Brent,23/12/2023,Tesco Stores 2122,Short Break Centre,Supplies and Services Expenditure,48.03
07/03/2024,,LB of Brent,23/12/2023,Facebk Ybhltwthq2,Corporate Communications Unit,Supplies and Services Expenditure,146.95
07/03/2024,,LB of Brent,24/12/2023,British Gas Online,NAIL Property Management,Supplies and Services Expenditure,82.5
07/03/2024,,LB of Brent,24/12/2023,British Gas Online,NAIL Property Management,Supplies and Services Expenditure,82.5
07/03/2024,,LB of Brent,24/12/2023,British Gas Online,NAIL Property Management,Supplies and Services Expenditure,82.5
07/03/2024,,LB of Brent,24/12/2023,British Gas Online,NAIL Property Management,Supplies and Services Expenditure,82.5
07/03/2024,,LB of Brent,24/12/2023,Scottish Power,NAIL Property Management,Supplies and Services Expenditure,166.67
07/03/2024,,LB of Brent,24/12/2023,Hotjar,Digital Comms,Supplies and Services Expenditure,84.83
07/03/2024,,LB of Brent,25/12/2023,Eventbrite.Com Org Fee,Corporate Communications Unit,Supplies and Services Expenditure,59
07/03/2024,,LB of Brent,26/12/2023,Wly,Willows Nursery,Supplies and Services Expenditure,15
07/03/2024,,LB of Brent,27/12/2023,Shell Willesden,Estate Cleaning Team,Supplies and Services Expenditure,52.64
07/03/2024,,LB of Brent,27/12/2023,Amazon.Co.Uk,Brent Music Service,Supplies and Services Expenditure,374.17
07/03/2024,,LB of Brent,27/12/2023,Veed.Io Basic,Transformation Team,Financial Services,18
07/03/2024,,LB of Brent,27/12/2023,Brent Council,Parish Liaison,Financial Services,11
07/03/2024,,LB of Brent,28/12/2023,Tesco Stores 2122,Short Break Centre,Supplies and Services Expenditure,-0.75
07/03/2024,,LB of Brent,28/12/2023,Tesco Stores 2122,Short Break Centre,Supplies and Services Expenditure,112.1
07/03/2024,,LB of Brent,28/12/2023,Asda Groceries Online,Willows Nursery,Supplies and Services Expenditure,6.5
07/03/2024,,LB of Brent,28/12/2023,Amznmktplace,Cemeteries Admin,Stationery,12
07/03/2024,,LB of Brent,28/12/2023,Amznmktplace,Cemeteries Admin,Stationery,2.99
07/03/2024,,LB of Brent,28/12/2023,Amznmktplace,Cemeteries Admin,Stationery,2.95
07/03/2024,,LB of Brent,28/12/2023,Amazon.Co.Uk,Trading Standards - Brent,Stationery,58.92
07/03/2024,,LB of Brent,28/12/2023,Brent Council,Parish Liaison,Financial Services,11
07/03/2024,,LB of Brent,28/12/2023,Brent Council,Parish Liaison,Financial Services,11
07/03/2024,,LB of Brent,29/12/2023,Amznmktplace,Social Services Directorate,Information Communication Technology,39.99
07/03/2024,,LB of Brent,29/12/2023,Wickes Cricklewood,Estate Cleaning Team,Supplies and Services Expenditure,40.5
07/03/2024,,LB of Brent,29/12/2023,British Gas Online,NAIL Property Management,Supplies and Services Expenditure,82.5
07/03/2024,,LB of Brent,29/12/2023,British Gas Online,NAIL Property Management,Supplies and Services Expenditure,82.5
07/03/2024,,LB of Brent,29/12/2023,Www.Cips.Org,Brent Sicts,Supplies and Services Expenditure,20
07/03/2024,,LB of Brent,29/12/2023,Amazon* 205-6522170-38,Learning Disabilities Team,Stationery,-66.11
07/03/2024,,LB of Brent,29/12/2023,Premier Inn,Resident Services Corporate Director,Human Resources - Training and Conferences,275
07/03/2024,,LB of Brent,30/12/2023,Amznmktplace,Cemeteries Admin,Stationery,9.95
07/03/2024,,LB of Brent,30/12/2023,Amznmktplace,Resident Services Corporate Director,Stationery,19.99
07/03/2024,,LB of Brent,31/12/2023,Amznmktplace,Cemeteries Admin,Stationery,9.95
07/03/2024,,LB of Brent,01/01/2024,Flickr Pro Monthly,Digital Comms,Supplies and Services Expenditure,7.99
07/03/2024,,LB of Brent,01/01/2024,Gsuite_bmsstaff.Com,Brent Music Service,Supplies and Services Expenditure,92
07/03/2024,,LB of Brent,02/01/2024,Hmctslondoncse077,Debt and Income,Supplies and Services Expenditure,90.5
07/03/2024,,LB of Brent,02/01/2024,Amazon Prime,Willows Nursery,Supplies and Services Expenditure,7.49
07/03/2024,,LB of Brent,02/01/2024,Asda Groceries Online,Willows Nursery,Supplies and Services Expenditure,98.51
07/03/2024,,LB of Brent,02/01/2024,Intellisoftware Ltd,IT Operations,Supplies and Services Expenditure,10
07/03/2024,,LB of Brent,02/01/2024,Tfl Roadchg Stdautopay,Building Cleaning,Supplies and Services Expenditure,947.92
07/03/2024,,LB of Brent,03/01/2024,1password,IT Operations,Supplies and Services Expenditure,26.97
07/03/2024,,LB of Brent,03/01/2024,Post Office Counter,Short Break Centre,Supplies and Services Expenditure,2.75
07/03/2024,,LB of Brent,03/01/2024,Wm Morrisons Store,Short Break Centre,Supplies and Services Expenditure,21.84
07/03/2024,,LB of Brent,03/01/2024,Asda Groceries Online,Short Break Centre,Supplies and Services Expenditure,-35.55
07/03/2024,,LB of Brent,03/01/2024,Asda Groceries Online,Short Break Centre,Supplies and Services Expenditure,149.94
07/03/2024,,LB of Brent,03/01/2024,Wickes Hanworth,Bridge Park Facilities,Supplies and Services Expenditure,17.5
07/03/2024,,LB of Brent,03/01/2024,Amznmktplace,Willows Nursery,Supplies and Services Expenditure,54.82
07/03/2024,,LB of Brent,03/01/2024,St Georges Hotel,Emergency Planning,Supplies and Services Expenditure,75
07/03/2024,,LB of Brent,03/01/2024,Amznmktplace,Afghan Resettlement Scheme,Supplies and Services Expenditure,-117.42
07/03/2024,,LB of Brent,03/01/2024,Amznmktplace,Assessment,Stationery,5.85
07/03/2024,,LB of Brent,03/01/2024,Viking,Digital Post Room,Stationery,46.08
07/03/2024,,LB of Brent,03/01/2024,Amazon.Co.Uk,Assessment,Stationery,78.97
07/03/2024,,LB of Brent,03/01/2024,Amznmktplace,Assessment,Stationery,-236.65
07/03/2024,,LB of Brent,03/01/2024,Amznmktplace,Assessment,Stationery,236.65
07/03/2024,,LB of Brent,03/01/2024,Posturite Ltd,Assessment,Stationery,362.95
07/03/2024,,LB of Brent,03/01/2024,Posturite Ltd,Assessment,Stationery,362.95
07/03/2024,,LB of Brent,03/01/2024,Brent Council,Parish Liaison,Financial Services,11
07/03/2024,,LB of Brent,04/01/2024,Asda Superstore 04881,Willows Nursery,Supplies and Services Expenditure,18.07
07/03/2024,,LB of Brent,04/01/2024,Premier Inn,Emergency Planning,Supplies and Services Expenditure,58.99
07/03/2024,,LB of Brent,04/01/2024,Premier Inn,Emergency Planning,Supplies and Services Expenditure,89.99
07/03/2024,,LB of Brent,04/01/2024,Amznmktplace,Brent Sicts Consumables,Supplies and Services Expenditure,24.99
07/03/2024,,LB of Brent,04/01/2024,Amznmktplace,Cemeteries Admin,Stationery,59.75
07/03/2024,,LB of Brent,04/01/2024,Amznmktplace,Assessment,Stationery,78.97
07/03/2024,,LB of Brent,04/01/2024,Viking,Digital Post Room,Stationery,214.68
07/03/2024,,LB of Brent,04/01/2024,Companieshouse Web Filing,Legal Support,Supplies and Services Expenditure,15
07/03/2024,,LB of Brent,04/01/2024,Domino S Pizza,Emergency Planning,Supplies and Services Expenditure,82.07
07/03/2024,,LB of Brent,04/01/2024,Domino S Pizza,Emergency Planning,Supplies and Services Expenditure,82.07
07/03/2024,,LB of Brent,04/01/2024,Domino S Pizza,Emergency Planning,Supplies and Services Expenditure,82.07
07/03/2024,,LB of Brent,04/01/2024,Scottish Power,NAIL Property Management,Supplies and Services Expenditure,166.67
07/03/2024,,LB of Brent,04/01/2024,Scottish Power,NAIL Property Management,Supplies and Services Expenditure,166.67
07/03/2024,,LB of Brent,05/01/2024,Microsoft G035781609,Brent Sicts,Supplies and Services Expenditure,4.9
07/03/2024,,LB of Brent,05/01/2024,Amznmktplace,NAIL Property Management,Supplies and Services Expenditure,39.15
07/03/2024,,LB of Brent,05/01/2024,Amznmktplace,Willows Nursery,Supplies and Services Expenditure,28.84
07/03/2024,,LB of Brent,05/01/2024,Trainline,Electoral Registration,Supplies and Services Expenditure,51.79
07/03/2024,,LB of Brent,05/01/2024,Www.Theworks.Co.Uk,Fostering Support Team A,Supplies and Services Expenditure,70
07/03/2024,,LB of Brent,05/01/2024,Www.Theworks.Co.Uk,Kinship Team,Supplies and Services Expenditure,70
07/03/2024,,LB of Brent,05/01/2024,Premier Inn,Emergency Planning,Supplies and Services Expenditure,-9.99
07/03/2024,,LB of Brent,05/01/2024,Premier Inn,Emergency Planning,Supplies and Services Expenditure,-58.99
07/03/2024,,LB of Brent,05/01/2024,Www.Hillingdon.Gov.Uk,Mayors Prev Yrs,Arts and Leisure Services,40.5
07/03/2024,,LB of Brent,05/01/2024,Amznmktplace,Resident Services Corporate Director,Stationery,314.22
07/03/2024,,LB of Brent,05/01/2024,Sheermans Limited,Emergency Planning,Supplies and Services Expenditure,99.92
07/03/2024,,LB of Brent,05/01/2024,Hotel Crown,Emergency Planning,Supplies and Services Expenditure,833.33
07/03/2024,,LB of Brent,05/01/2024,Novotel London Wemble,Emergency Planning,Supplies and Services Expenditure,1090.83
07/03/2024,,LB of Brent,05/01/2024,Hotel Crown,Emergency Planning,Supplies and Services Expenditure,4166.67
07/03/2024,,LB of Brent,05/01/2024,Hotel Crown,Emergency Planning,Supplies and Services Expenditure,4166.67
07/03/2024,,LB of Brent,05/01/2024,R3 Polygon UK Ltd,Repairs Management Team,Works - Construction Repair and Maintenance - Buildings,1485
07/03/2024,,LB of Brent,06/01/2024,Tesco Stores 2122,Short Break Centre,Supplies and Services Expenditure,144.04
07/03/2024,,LB of Brent,06/01/2024,1password,IT Operations,Supplies and Services Expenditure,26.66
07/03/2024,,LB of Brent,07/01/2024,Bkg*hotel At Booking.C,Operational Costs - Facilities,Supplies and Services Expenditure,89
07/03/2024,,LB of Brent,07/01/2024,Bkg*hotel At Booking.C,Operational Costs - Facilities,Supplies and Services Expenditure,131
07/03/2024,,LB of Brent,07/01/2024,Amazon Prime,Brent Sicts,Supplies and Services Expenditure,7.49
07/03/2024,,LB of Brent,07/01/2024,Amazon* 205-6447987-41,Assessment,Stationery,109.97
07/03/2024,,LB of Brent,08/01/2024,Moj Ospt Ecom,Housing Support Team,Supplies and Services Expenditure,40
07/03/2024,,LB of Brent,08/01/2024,Amazon Prime,Childrens Social Care Business Support,Supplies and Services Expenditure,7.49
07/03/2024,,LB of Brent,08/01/2024,Sp Itil Docs,ICT Client and Applications Support,Supplies and Services Expenditure,56.35
07/03/2024,,LB of Brent,08/01/2024,Flextronics,Brent Sicts Consumables,Supplies and Services Expenditure,285.77
07/03/2024,,LB of Brent,08/01/2024,Amznmktplace,Business and Information,Stationery,99.9
07/03/2024,,LB of Brent,08/01/2024,Amznmktplace,Business and Information,Stationery,52.43
07/03/2024,,LB of Brent,08/01/2024,Amznmktplace,Business and Information,Stationery,127.35
07/03/2024,,LB of Brent,08/01/2024,Scottish Power,NAIL Property Management,Supplies and Services Expenditure,83.33
07/03/2024,,LB of Brent,08/01/2024,Scottish Power,NAIL Property Management,Supplies and Services Expenditure,166.67
07/03/2024,,LB of Brent,09/01/2024,Wickes Basingstoke,Gordon Brown Outdoor Education Centre,Supplies and Services Expenditure,86.5
07/03/2024,,LB of Brent,09/01/2024,Tfl Travel Ch,Parish Liaison,Supplies and Services Expenditure,7.6
07/03/2024,,LB of Brent,09/01/2024,Amznmktplace,Operational Costs - Facilities,Supplies and Services Expenditure,8.32
07/03/2024,,LB of Brent,09/01/2024,Amznmktplace,Operational Costs - Facilities,Supplies and Services Expenditure,11.98
07/03/2024,,LB of Brent,09/01/2024,Amznmktplace,Operational Costs - Facilities,Supplies and Services Expenditure,15.61
07/03/2024,,LB of Brent,09/01/2024,Asda Superstore 04881,Brent Family Solutions,Supplies and Services Expenditure,14.95
07/03/2024,,LB of Brent,09/01/2024,Amznmktplace,Brent Family Solutions,Supplies and Services Expenditure,59.92
07/03/2024,,LB of Brent,09/01/2024,Amznmktplace,Brent Family Solutions,Supplies and Services Expenditure,152.95
07/03/2024,,LB of Brent,09/01/2024,Asda Superstore 04881,Brent Family Solutions,Supplies and Services Expenditure,160
07/03/2024,,LB of Brent,09/01/2024,Adexa.Co.Uk,Gordon Brown Outdoor Education Centre,Supplies and Services Expenditure,376.8
07/03/2024,,LB of Brent,09/01/2024,Amznmktplace,Civic Centre Conference and Events,Stationery,5.98
07/03/2024,,LB of Brent,09/01/2024,Amznmktplace,Civic Centre Conference and Events,Stationery,4.49
07/03/2024,,LB of Brent,09/01/2024,Www.Reddrivingschool.Com,Afghan Resettlement Scheme,Supplies and Services Expenditure,336.24
07/03/2024,,LB of Brent,09/01/2024,Www.Reddrivingschool.Com,Afghan Resettlement Scheme,Supplies and Services Expenditure,336.24
07/03/2024,,LB of Brent,09/01/2024,Novotel Wolverhamp,Development Control,Human Resources - Training and Conferences,393.75
07/03/2024,,LB of Brent,10/01/2024,Amznmktplace,Brent Family Solutions,Supplies and Services Expenditure,189
07/03/2024,,LB of Brent,10/01/2024,Amznmktplace,Brent Family Solutions,Supplies and Services Expenditure,196.14
07/03/2024,,LB of Brent,10/01/2024,Tesco Stores 2122,Short Break Centre,Supplies and Services Expenditure,-26
07/03/2024,,LB of Brent,10/01/2024,Tesco Stores 2122,Short Break Centre,Supplies and Services Expenditure,134.17
07/03/2024,,LB of Brent,10/01/2024,Completesave.Co.Uk,Residential and Nursing Team,Supplies and Services Expenditure,15
07/03/2024,,LB of Brent,10/01/2024,C2e877601751t Ukvi,Housing Needs Accommodation Team,Supplies and Services Expenditure,3239
07/03/2024,,LB of Brent,10/01/2024,Amznmktplace,Operational Costs - Facilities,Supplies and Services Expenditure,9.59
07/03/2024,,LB of Brent,10/01/2024,Moj Ospt Ecom,Housing Support Team,Supplies and Services Expenditure,40
07/03/2024,,LB of Brent,10/01/2024,Amznmktplace,Legal Support,Stationery,1.83
07/03/2024,,LB of Brent,10/01/2024,Amznmktplace,Legal Support,Stationery,11.87
07/03/2024,,LB of Brent,11/01/2024,Amazon.Co.Uk,Southwark Sicts Consumables,Information Communication Technology,10.82
07/03/2024,,LB of Brent,11/01/2024,Screwfix Dir Ltd,Gordon Brown Outdoor Education Centre,Supplies and Services Expenditure,43.27
07/03/2024,,LB of Brent,11/01/2024,Www.Screwfix.Com,Gordon Brown Outdoor Education Centre,Supplies and Services Expenditure,594.53
07/03/2024,,LB of Brent,11/01/2024,Amznmktplace,Brent Music Service,Supplies and Services Expenditure,51.45
07/03/2024,,LB of Brent,11/01/2024,Nisbets Ltd,Gordon Brown Outdoor Education Centre,Supplies and Services Expenditure,149.98
07/03/2024,,LB of Brent,11/01/2024,Next Directory,Afghan Resettlement Scheme,Supplies and Services Expenditure,37.46
07/03/2024,,LB of Brent,11/01/2024,Amazon* 205-6522170-38,Learning Disabilities Team,Stationery,-253.9
07/03/2024,,LB of Brent,11/01/2024,Sportsdirect.Com,Afghan Resettlement Scheme,Supplies and Services Expenditure,129.14
07/03/2024,,LB of Brent,12/01/2024,Amznmktplace,Short Break Centre,Supplies and Services Expenditure,33.99
07/03/2024,,LB of Brent,12/01/2024,Amznmktplace,Brent Family Solutions,Supplies and Services Expenditure,51.96
07/03/2024,,LB of Brent,12/01/2024,Amazon.Co.Uk,Heritage,Arts and Leisure Services,26.66
07/03/2024,,LB of Brent,12/01/2024,Post Office Counter,Short Break Centre,Supplies and Services Expenditure,11.82
07/03/2024,,LB of Brent,12/01/2024,Matalan,Short Break Centre,Supplies and Services Expenditure,97
07/03/2024,,LB of Brent,12/01/2024,Canva* I04028-26383005,Housing Support Team,Supplies and Services Expenditure,99.99
07/03/2024,,LB of Brent,12/01/2024,Amznmktplace,Operational Costs - Facilities,Supplies and Services Expenditure,-11.98
07/03/2024,,LB of Brent,12/01/2024,Lul Ticket Machine,Brent Family Solutions,Supplies and Services Expenditure,30
07/03/2024,,LB of Brent,12/01/2024,Amznmktplace,Brent Family Solutions,Supplies and Services Expenditure,392.44
07/03/2024,,LB of Brent,12/01/2024,Amznmktplace,Brent Family Solutions,Supplies and Services Expenditure,392.44
07/03/2024,,LB of Brent,12/01/2024,Amznmktplace,Brent Family Solutions,Supplies and Services Expenditure,392.44
07/03/2024,,LB of Brent,12/01/2024,Amazon.Co.Uk,Client Affairs,Stationery,58.69
07/03/2024,,LB of Brent,12/01/2024,Amazon.Co.Uk,Client Affairs,Stationery,58.69
07/03/2024,,LB of Brent,12/01/2024,Safety Gloves,Cemeteries Admin,Stationery,68.6
07/03/2024,,LB of Brent,12/01/2024,Eb *sewn Together A Lo,Climate Emergency Budget,Human Resources - Training and Conferences,6.13
07/03/2024,,LB of Brent,12/01/2024,Amznmktplace,Afghan Resettlement Scheme,Supplies and Services Expenditure,228.22
07/03/2024,,LB of Brent,13/01/2024,Tesco Stores 2122,Short Break Centre,Supplies and Services Expenditure,118.83
07/03/2024,,LB of Brent,13/01/2024,Ebay O*16-11043-37795,Bridge Park Facilities,Supplies and Services Expenditure,7.94
07/03/2024,,LB of Brent,13/01/2024,Namesco,IT Operations,Information Communication Technology,5.99
07/03/2024,,LB of Brent,13/01/2024,Amazon.Co.Uk,Client Affairs,Stationery,58.69
07/03/2024,,LB of Brent,13/01/2024,Amazon.Co.Uk,Client Affairs,Stationery,58.69
07/03/2024,,LB of Brent,14/01/2024,Amznmktplace,Quality and Business Rates,Stationery,14.19
07/03/2024,,LB of Brent,15/01/2024,Amznmktplace,Brent Family Solutions,Supplies and Services Expenditure,123.92
07/03/2024,,LB of Brent,15/01/2024,Amznmktplace,Short Break Centre,Supplies and Services Expenditure,19.98
07/03/2024,,LB of Brent,15/01/2024,Screwfix Dir Ltd,Gordon Brown Outdoor Education Centre,Supplies and Services Expenditure,53.69
07/03/2024,,LB of Brent,15/01/2024,Asda Groceries Online,Willows Nursery,Supplies and Services Expenditure,52.5
07/03/2024,,LB of Brent,15/01/2024,Amznmktplace,Brent Music Service,Supplies and Services Expenditure,38.97
07/03/2024,,LB of Brent,15/01/2024,Prezzee/Gbc6278ac4,Brent Family Solutions,Supplies and Services Expenditure,10
07/03/2024,,LB of Brent,15/01/2024,Prezzee/Gb2dae1503,Brent Family Solutions,Supplies and Services Expenditure,150
07/03/2024,,LB of Brent,15/01/2024,Amznmktplace,Gordon Brown Outdoor Education Centre,Supplies and Services Expenditure,35.9
07/03/2024,,LB of Brent,15/01/2024,Amznmktplace,Gordon Brown Outdoor Education Centre,Supplies and Services Expenditure,22.94
07/03/2024,,LB of Brent,15/01/2024,Amznmktplace,Gordon Brown Outdoor Education Centre,Supplies and Services Expenditure,64.5
07/03/2024,,LB of Brent,15/01/2024,Amznmktplace,Public Health Miscellaneous,Stationery,10.3
07/03/2024,,LB of Brent,15/01/2024,Amznmktplace,Public Health Miscellaneous,Stationery,78.91
07/03/2024,,LB of Brent,15/01/2024,Amznmktplace,Public Health Miscellaneous,Stationery,15.82
07/03/2024,,LB of Brent,15/01/2024,Amznmktplace,Public Health Miscellaneous,Stationery,3.54
07/03/2024,,LB of Brent,15/01/2024,Amznmktplace,Public Health Miscellaneous,Stationery,41.62
07/03/2024,,LB of Brent,15/01/2024,Fasthosts,SEN Assessment Service,Financial Services,107.91
07/03/2024,,LB of Brent,16/01/2024,Amznmktplace,Public Health Miscellaneous,Stationery,8.32
07/03/2024,,LB of Brent,16/01/2024,Amazon.Co.Uk,Schools Hr,Stationery,30.57
07/03/2024,,LB of Brent,16/01/2024,Screwfix Dir Ltd,Gordon Brown Outdoor Education Centre,Supplies and Services Expenditure,150.79
07/03/2024,,LB of Brent,16/01/2024,Amznmktplace,Wembley Learning Zone,Supplies and Services Expenditure,424.48
07/03/2024,,LB of Brent,16/01/2024,Chartered Institute Of Le,Legal Support,Financial Services,367
07/03/2024,,LB of Brent,16/01/2024,Amznmktplace,Public Health Miscellaneous,Stationery,3.78
07/03/2024,,LB of Brent,16/01/2024,Amznmktplace,Civic Centre - Av,Stationery,6.24
07/03/2024,,LB of Brent,16/01/2024,Amznmktplace,Cemeteries Admin,Stationery,9.49
07/03/2024,,LB of Brent,16/01/2024,Amznmktplace,Public Health Miscellaneous,Stationery,8.29
07/03/2024,,LB of Brent,16/01/2024,Amznmktplace,Public Health Miscellaneous,Stationery,33.32
07/03/2024,,LB of Brent,16/01/2024,Posturite Ltd,Learning Disabilities Team,Stationery,48.95
07/03/2024,,LB of Brent,17/01/2024,Amznmktplace,Gordon Brown Outdoor Education Centre,Supplies and Services Expenditure,15.88
07/03/2024,,LB of Brent,17/01/2024,Amznmktplace,Gordon Brown Outdoor Education Centre,Supplies and Services Expenditure,12.9
07/03/2024,,LB of Brent,17/01/2024,Amznmktplace,Gordon Brown Outdoor Education Centre,Supplies and Services Expenditure,35.8
07/03/2024,,LB of Brent,17/01/2024,Shell Willesden,Estate Cleaning Team,Supplies and Services Expenditure,55.27
07/03/2024,,LB of Brent,17/01/2024,Scottish Power,NAIL Property Management,Supplies and Services Expenditure,83.33
07/03/2024,,LB of Brent,17/01/2024,Scottish Power,NAIL Property Management,Supplies and Services Expenditure,166.67
07/03/2024,,LB of Brent,17/01/2024,Hmcts Westlondon073,Debt and Income,Supplies and Services Expenditure,1278.5
07/03/2024,,LB of Brent,17/01/2024,Prezzee/Gbd95082ef,Brent Family Solutions,Supplies and Services Expenditure,50
07/03/2024,,LB of Brent,17/01/2024,Prezzee/Gb8e5b839d,Brent Family Solutions,Supplies and Services Expenditure,50
07/03/2024,,LB of Brent,17/01/2024,Prezzee/Gb51b6fb2e,Brent Family Solutions,Supplies and Services Expenditure,50
07/03/2024,,LB of Brent,17/01/2024,Amznmktplace,Brent Family Solutions,Supplies and Services Expenditure,53.14
07/03/2024,,LB of Brent,17/01/2024,Prezzee/Gb57bec202,Brent Family Solutions,Supplies and Services Expenditure,150
07/03/2024,,LB of Brent,17/01/2024,Amazon.Co.Uk,Heritage,Arts and Leisure Services,44.8
07/03/2024,,LB of Brent,17/01/2024,Chartered Institute Of Le,Legal Support,Financial Services,367
07/03/2024,,LB of Brent,17/01/2024,Amznmktplace,Commercial Portfolio,Stationery,9.99
07/03/2024,,LB of Brent,17/01/2024,Trainline,RTB,Human Resources - Travel and Subsistence - Taxi Fares,47.59
07/03/2024,,LB of Brent,17/01/2024,Posturite Ltd,Community Engagement,Furniture and Soft Furnishings,1718.4
07/03/2024,,LB of Brent,17/01/2024,Posturite Ltd,Community Engagement,Furniture and Soft Furnishings,1718.4
07/03/2024,,LB of Brent,17/01/2024,Amznmktplace,Afghan Resettlement Scheme,Supplies and Services Expenditure,526.6
07/03/2024,,LB of Brent,18/01/2024,Amznmktplace,Brent Family Solutions,Supplies and Services Expenditure,26.98
07/03/2024,,LB of Brent,18/01/2024,Asda Superstore,Short Break Centre,Supplies and Services Expenditure,4.8
07/03/2024,,LB of Brent,18/01/2024,Dyetts Locks & Keys,Estate Cleaning Team,Supplies and Services Expenditure,4.99
07/03/2024,,LB of Brent,18/01/2024,Tfl Oyster Auto Topup,HSG Central Serv - Housing Directorate,Supplies and Services Expenditure,16.67
07/03/2024,,LB of Brent,18/01/2024,Sportsdirect.Com,Afghan Resettlement Scheme,Supplies and Services Expenditure,-90
07/03/2024,,LB of Brent,18/01/2024,Prezzee/Gb9442f9ce,Brent Family Solutions,Supplies and Services Expenditure,25
07/03/2024,,LB of Brent,18/01/2024,Www.Argos.Co.Uk,Afghan Resettlement Scheme,Supplies and Services Expenditure,35.24
07/03/2024,,LB of Brent,18/01/2024,Sp Ebebek UK Retail,Afghan Resettlement Scheme,Supplies and Services Expenditure,41.62
07/03/2024,,LB of Brent,18/01/2024,Amazon.Co.Uk,Legal Support,Stationery,9.1
07/03/2024,,LB of Brent,18/01/2024,Amznmktplace,Cemeteries Admin,Stationery,23.89
07/03/2024,,LB of Brent,18/01/2024,Amznmktplace,Cemeteries Admin,Stationery,89
07/03/2024,,LB of Brent,18/01/2024,Amznmktplace,HMO Licensing,Stationery,91.09
07/03/2024,,LB of Brent,18/01/2024,Dunelm Softfurnishings,Afghan Resettlement Scheme,Supplies and Services Expenditure,290.33
07/03/2024,,LB of Brent,18/01/2024,Chartered Institute Of Le,Legal Support,Financial Services,367
07/03/2024,,LB of Brent,18/01/2024,Www.Argos.Co.Uk,Afghan Resettlement Scheme,Supplies and Services Expenditure,445.53
07/03/2024,,LB of Brent,18/01/2024,Www.Opusenergy.Com,Afghan Resettlement Scheme,Supplies and Services Expenditure,872.14
07/03/2024,,LB of Brent,19/01/2024,Atlassian,Digital Comms,Supplies and Services Expenditure,9.77
07/03/2024,,LB of Brent,19/01/2024,Amznmktplace,Chief Execs,Stationery,7.25
07/03/2024,,LB of Brent,19/01/2024,Amznmktplace,Chief Execs,Stationery,8.75
07/03/2024,,LB of Brent,19/01/2024,Tesco Stores 2122,Short Break Centre,Supplies and Services Expenditure,-2.5
07/03/2024,,LB of Brent,19/01/2024,Tesco Stores 2122,Short Break Centre,Supplies and Services Expenditure,134.73
07/03/2024,,LB of Brent,19/01/2024,Dyetts Locks & Keys,Estate Cleaning Team,Supplies and Services Expenditure,9.98
07/03/2024,,LB of Brent,19/01/2024,Amznmktplace,Willows Nursery,Supplies and Services Expenditure,112.79
07/03/2024,,LB of Brent,19/01/2024,Brent Parking,Registration and Nationality Service,Supplies and Services Expenditure,20
07/03/2024,,LB of Brent,19/01/2024,Brent Parking,Registration and Nationality Service,Supplies and Services Expenditure,16.67
07/03/2024,,LB of Brent,19/01/2024,Lul Ticket Machine,Brent Family Solutions,Supplies and Services Expenditure,20
07/03/2024,,LB of Brent,19/01/2024,Lul Ticket Machine,Brent Family Solutions,Supplies and Services Expenditure,30
07/03/2024,,LB of Brent,19/01/2024,Tesco Stores 2080,Gordon Brown Outdoor Education Centre,Supplies and Services Expenditure,220.89
07/03/2024,,LB of Brent,19/01/2024,Moj Ospt Ecom,Housing Support Team,Supplies and Services Expenditure,40
07/03/2024,,LB of Brent,19/01/2024,Brent Council,Parish Liaison,Supplies and Services Expenditure,11
07/03/2024,,LB of Brent,19/01/2024,Brent Council,Parish Liaison,Supplies and Services Expenditure,11
07/03/2024,,LB of Brent,21/01/2024,Amznmktplace,Transformation Team,Stationery,60.98
07/03/2024,,LB of Brent,22/01/2024,British Gas Online,NAIL Property Management,Supplies and Services Expenditure,82.5
07/03/2024,,LB of Brent,22/01/2024,British Gas Online,NAIL Property Management,Supplies and Services Expenditure,82.5
07/03/2024,,LB of Brent,22/01/2024,British Gas Online,NAIL Property Management,Supplies and Services Expenditure,99
07/03/2024,,LB of Brent,22/01/2024,Adobe Systems Software,Corporate Communications Unit,Supplies and Services Expenditure,43.32
07/03/2024,,LB of Brent,22/01/2024,Asda Groceries Online,Willows Nursery,Supplies and Services Expenditure,45.48
07/03/2024,,LB of Brent,22/01/2024,Abrsm.Org,Brent Music Service,Supplies and Services Expenditure,64
07/03/2024,,LB of Brent,22/01/2024,Amznmktplace,Afghan Resettlement Scheme,Supplies and Services Expenditure,88.67
07/03/2024,,LB of Brent,22/01/2024,Moj Ospt Ecom,Housing Support Team,Supplies and Services Expenditure,40
07/03/2024,,LB of Brent,22/01/2024,Moj Ospt Ecom,Housing Support Team,Supplies and Services Expenditure,40
07/03/2024,,LB of Brent,22/01/2024,Moj Ospt Ecom,Housing Support Team,Supplies and Services Expenditure,40
07/03/2024,,LB of Brent,22/01/2024,Moj Ospt Ecom,Housing Support Team,Supplies and Services Expenditure,40
07/03/2024,,LB of Brent,22/01/2024,Amznmktplace,Legal Support,Stationery,5.99
07/03/2024,,LB of Brent,22/01/2024,Amznmktplace,Legal Support,Stationery,15.99
07/03/2024,,LB of Brent,22/01/2024,Amznmktplace,Quality and Business Rates,Stationery,17.88
07/03/2024,,LB of Brent,22/01/2024,Amznmktplace,Legal Support,Stationery,19.17
07/03/2024,,LB of Brent,22/01/2024,The Mj/Hemming Group L,Political Group Support,Financial Services,199
07/03/2024,,LB of Brent,22/01/2024,Westminster Insight,Hr Services,Human Resources - Training and Conferences,269.1
07/03/2024,,LB of Brent,23/01/2024,British Gas Online,NAIL Property Management,Supplies and Services Expenditure,82.5
07/03/2024,,LB of Brent,23/01/2024,British Gas Online,NAIL Property Management,Supplies and Services Expenditure,82.5
07/03/2024,,LB of Brent,23/01/2024,British Gas Online,NAIL Property Management,Supplies and Services Expenditure,82.5
07/03/2024,,LB of Brent,23/01/2024,British Gas Online,NAIL Property Management,Supplies and Services Expenditure,82.5
07/03/2024,,LB of Brent,23/01/2024,British Gas Online,NAIL Property Management,Supplies and Services Expenditure,82.5
07/03/2024,,LB of Brent,23/01/2024,Corambaaf,Childrens Social Care Business Support,Supplies and Services Expenditure,11.76
07/03/2024,,LB of Brent,23/01/2024,Sportsdirect.Com,Afghan Resettlement Scheme,Supplies and Services Expenditure,-59.98
07/03/2024,,LB of Brent,23/01/2024,Facebk *3nuqay3jq2,Campaigns and Media,Supplies and Services Expenditure,46.17
07/03/2024,,LB of Brent,23/01/2024,Facebk *3nuqay3jq2,Climate Emergency Budget,Supplies and Services Expenditure,77.07
07/03/2024,,LB of Brent,23/01/2024,Facebk *3nuqay3jq2,Campaigns and Media,Supplies and Services Expenditure,27.53
07/03/2024,,LB of Brent,23/01/2024,Facebk *3nuqay3jq2,Campaigns and Media,Supplies and Services Expenditure,250
07/03/2024,,LB of Brent,23/01/2024,Facebk *3nuqay3jq2,Climate Emergency Budget,Supplies and Services Expenditure,50
07/03/2024,,LB of Brent,23/01/2024,Venuescannner.Com,Civic Centre Conference and Events,Arts and Leisure Services,118.8
07/03/2024,,LB of Brent,23/01/2024,Www.Cips.Org,IT Operations,Information Communication Technology,440
07/03/2024,,LB of Brent,23/01/2024,Posturite Ltd,Hr Operational,Stationery,214.9
07/03/2024,,LB of Brent,23/01/2024,Amznmktplace,Audit and Investigations,Stationery,62.85
07/03/2024,,LB of Brent,23/01/2024,Zettle_*angel Cars,Emergency Planning,Supplies and Services Expenditure,227
07/03/2024,,LB of Brent,24/01/2024,Amznbusiness,Gordon Brown Outdoor Education Centre,Supplies and Services Expenditure,5.72
07/03/2024,,LB of Brent,24/01/2024,Amznbusiness,Gordon Brown Outdoor Education Centre,Supplies and Services Expenditure,29.99
07/03/2024,,LB of Brent,24/01/2024,Amznbusiness,Gordon Brown Outdoor Education Centre,Supplies and Services Expenditure,8
07/03/2024,,LB of Brent,24/01/2024,B & Q 1066,Short Break Centre,Supplies and Services Expenditure,27.45
07/03/2024,,LB of Brent,24/01/2024,Asda Superstore 04881,Short Break Centre,Supplies and Services Expenditure,45.65
07/03/2024,,LB of Brent,24/01/2024,B & Q 1051,Estate Cleaning Team,Supplies and Services Expenditure,11
07/03/2024,,LB of Brent,24/01/2024,Sam Pounds Stores,NAIL Property Management,Supplies and Services Expenditure,15.62
07/03/2024,,LB of Brent,24/01/2024,Southern Roofline Supplie,Gordon Brown Outdoor Education Centre,Supplies and Services Expenditure,72
07/03/2024,,LB of Brent,24/01/2024,Amznmktplace,Operational Costs - Facilities,Supplies and Services Expenditure,20.24
07/03/2024,,LB of Brent,24/01/2024,Hotjar,Digital Comms,Supplies and Services Expenditure,83.63
07/03/2024,,LB of Brent,24/01/2024,Amznmktplace,Gordon Brown Outdoor Education Centre,Supplies and Services Expenditure,25.43
07/03/2024,,LB of Brent,24/01/2024,Entrust Gbp,Lewisham Homes,Information Communication Technology,212.51
07/03/2024,,LB of Brent,24/01/2024,Tesco Gift Card,Transformation Team,Financial Services,50
07/03/2024,,LB of Brent,24/01/2024,Tesco Gift Card,Transformation Team,Financial Services,50
07/03/2024,,LB of Brent,24/01/2024,Tesco Gift Card,Transformation Team,Financial Services,100
07/03/2024,,LB of Brent,24/01/2024,Amazon.Co.Uk,Transformation Team,Financial Services,70
07/03/2024,,LB of Brent,24/01/2024,Amazon.Co.Uk,Transformation Team,Financial Services,70
07/03/2024,,LB of Brent,24/01/2024,Amazon* 205-2491460-99,Transformation Team,Financial Services,140
07/03/2024,,LB of Brent,24/01/2024,Amznmktplace,Resources,Stationery,8.32
07/03/2024,,LB of Brent,24/01/2024,Prestig*eflowers,Statutory and External Investigation,Premises Expenditire Refunds,55.98
07/03/2024,,LB of Brent,24/01/2024,123-Reg,Civic Centre Conference and Events,Arts and Leisure Services,89.94
07/03/2024,,LB of Brent,25/01/2024,Tesco Stores 2122,Short Break Centre,Supplies and Services Expenditure,180.95
07/03/2024,,LB of Brent,25/01/2024,Brent Parking,Estate Cleaning Team,Supplies and Services Expenditure,9
07/03/2024,,LB of Brent,25/01/2024,Zaks Shoe Service,TA Property Management,Supplies and Services Expenditure,3
07/03/2024,,LB of Brent,25/01/2024,Eventbrite.Com Org Fee,Corporate Communications Unit,Supplies and Services Expenditure,59
07/03/2024,,LB of Brent,25/01/2024,Travelodge Gb0000,Housing Needs Accommodation Team,Supplies and Services Expenditure,626.94
07/03/2024,,LB of Brent,25/01/2024,Dmn/Queensskatedinebow,Brent Family Solutions,Supplies and Services Expenditure,110
07/03/2024,,LB of Brent,25/01/2024,Www.Therange.Co.Uk,Gordon Brown Outdoor Education Centre,Supplies and Services Expenditure,85.5
07/03/2024,,LB of Brent,25/01/2024,Clarks Outlet,Afghan Resettlement Scheme,Supplies and Services Expenditure,45.1
07/03/2024,,LB of Brent,25/01/2024,Marks&spencer Plc,Afghan Resettlement Scheme,Supplies and Services Expenditure,169.1
07/03/2024,,LB of Brent,25/01/2024,Amznmktplace,Single Homelessness Team,Stationery,3.98
07/03/2024,,LB of Brent,25/01/2024,Amazon* 205-9585707-50,Single Homelessness Team,Stationery,14.57
07/03/2024,,LB of Brent,25/01/2024,Amznmktplace,Single Homelessness Team,Stationery,20.99
07/03/2024,,LB of Brent,25/01/2024,Amazon* 205-8647759-18,Single Homelessness Team,Stationery,20.99
07/03/2024,,LB of Brent,25/01/2024,Amznmktplace,Single Homelessness Team,Stationery,20.99
07/03/2024,,LB of Brent,25/01/2024,Amznmktplace,Revenues,Stationery,42.49
07/03/2024,,LB of Brent,25/01/2024,Amazon* 205-3739724-50,Operational Costs - Facilities,Stationery,44.9
07/03/2024,,LB of Brent,25/01/2024,Amznmktplace,Single Homelessness Team,Stationery,69.99
07/03/2024,,LB of Brent,25/01/2024,Amazon* 205-3739724-50,Operational Costs - Facilities,Stationery,86.4
07/03/2024,,LB of Brent,25/01/2024,Amazon* 205-3739724-50,Operational Costs - Facilities,Stationery,92
07/03/2024,,LB of Brent,25/01/2024,Amazon* 205-6447987-41,Assessment,Stationery,-109.97
07/03/2024,,LB of Brent,25/01/2024,Sainsburys Wembley,Emergency Planning,Supplies and Services Expenditure,5.62
07/03/2024,,LB of Brent,25/01/2024,Amazon* 204-7804342-04,Lewisham IT Shared Service,Information Communication Technology,117.45
07/03/2024,,LB of Brent,25/01/2024,Amazon* 205-0310143-00,Operational Costs - Facilities,Stationery,101.55
07/03/2024,,LB of Brent,26/01/2024,Moj Ospt Ecom,Housing Support Team,Supplies and Services Expenditure,40
07/03/2024,,LB of Brent,26/01/2024,Moj Ospt Ecom,Housing Support Team,Supplies and Services Expenditure,40
07/03/2024,,LB of Brent,26/01/2024,Moj Ospt Ecom,Housing Support Team,Supplies and Services Expenditure,40
07/03/2024,,LB of Brent,26/01/2024,Moj Ospt Ecom,Housing Support Team,Supplies and Services Expenditure,40
07/03/2024,,LB of Brent,26/01/2024,Travelodge Gb0000,Housing Needs Accommodation Team,Supplies and Services Expenditure,648.42
07/03/2024,,LB of Brent,26/01/2024,Wly,Willows Nursery,Supplies and Services Expenditure,15
07/03/2024,,LB of Brent,26/01/2024,Sainsburys S/mkts,Heritage,Supplies and Services Expenditure,10.5
07/03/2024,,LB of Brent,26/01/2024,Www.Argos.Co.Uk,Afghan Resettlement Scheme,Supplies and Services Expenditure,115.95
07/03/2024,,LB of Brent,26/01/2024,Amazon* 204-9818313-82,Afghan Resettlement Scheme,Supplies and Services Expenditure,102.38
07/03/2024,,LB of Brent,26/01/2024,Paypal,Afghan Resettlement Scheme,Supplies and Services Expenditure,160
07/03/2024,,LB of Brent,26/01/2024,Paypal,Afghan Resettlement Scheme,Supplies and Services Expenditure,301.95
07/03/2024,,LB of Brent,26/01/2024,Amznmktplace,Single Homelessness Team,Stationery,17.35
07/03/2024,,LB of Brent,26/01/2024,Amazon.Co.Uk,Legal Support,Stationery,12.98
07/03/2024,,LB of Brent,26/01/2024,Amazon.Co.Uk,Legal Support,Stationery,15.95
07/03/2024,,LB of Brent,26/01/2024,Amznmktplace,Single Homelessness Team,Stationery,113.84
07/03/2024,,LB of Brent,26/01/2024,Amznmktplace,Physical Activity - Adults,Stationery,11.65
07/03/2024,,LB of Brent,26/01/2024,Amznmktplace,Physical Activity - Adults,Stationery,24.99
07/03/2024,,LB of Brent,26/01/2024,Amznmktplace,Physical Activity - Adults,Stationery,4.42
07/03/2024,,LB of Brent,26/01/2024,Amznmktplace,Physical Activity - Adults,Stationery,0.92
07/03/2024,,LB of Brent,26/01/2024,Amznmktplace,Physical Activity - Adults,Stationery,69.36
07/03/2024,,LB of Brent,26/01/2024,Amznmktplace,Physical Activity - Adults,Stationery,8.12
07/03/2024,,LB of Brent,26/01/2024,Amznmktplace,Physical Activity - Adults,Stationery,19.97
07/03/2024,,LB of Brent,26/01/2024,Amznmktplace,Physical Activity - Adults,Stationery,4.69
07/03/2024,,LB of Brent,26/01/2024,Amazon* 206-3417420-89,Operational Costs - Facilities,Supplies and Services Expenditure,40
07/03/2024,,LB of Brent,27/01/2024,Amazon.Co.Uk,Legal Support,Stationery,12.19
07/03/2024,,LB of Brent,27/01/2024,Ebay O*11-11105-09772,Heritage,Arts and Leisure Services,16.19
07/03/2024,,LB of Brent,27/01/2024,Sp Conservation Reso,Heritage,Arts and Leisure Services,78.83
07/03/2024,,LB of Brent,27/01/2024,Www.Preservationequipm,Heritage,Arts and Leisure Services,92.1
07/03/2024,,LB of Brent,28/01/2024,Tesco Stores 2122,Short Break Centre,Supplies and Services Expenditure,134.67
07/03/2024,,LB of Brent,28/01/2024,Asda Groceries Online,Willows Nursery,Supplies and Services Expenditure,6.5
07/03/2024,,LB of Brent,28/01/2024,Amznmktplace,Gordon Brown Outdoor Education Centre,Supplies and Services Expenditure,-25.43
07/03/2024,,LB of Brent,28/01/2024,Amznbusiness,Gordon Brown Outdoor Education Centre,Supplies and Services Expenditure,-5.72
07/03/2024,,LB of Brent,28/01/2024,Amznbusiness,Gordon Brown Outdoor Education Centre,Supplies and Services Expenditure,-8
07/03/2024,,LB of Brent,28/01/2024,Amznbusiness,Gordon Brown Outdoor Education Centre,Supplies and Services Expenditure,-29.99
07/03/2024,,LB of Brent,28/01/2024,Amznmktplace,Physical Activity - Adults,Stationery,59.97
07/03/2024,,LB of Brent,28/01/2024,Amznmktplace,Physical Activity - Adults,Stationery,29.99
07/03/2024,,LB of Brent,28/01/2024,British Gas Online,NAIL Property Management,Supplies and Services Expenditure,82.5
07/03/2024,,LB of Brent,28/01/2024,British Gas Online,NAIL Property Management,Supplies and Services Expenditure,82.5
07/03/2024,,LB of Brent,28/01/2024,British Gas Online,NAIL Property Management,Supplies and Services Expenditure,82.5
07/03/2024,,LB of Brent,29/01/2024,Amznmktplace,Physical Activity - Adults,Stationery,4.16
07/03/2024,,LB of Brent,29/01/2024,Amznmktplace,Physical Activity - Adults,Stationery,28.25
07/03/2024,,LB of Brent,29/01/2024,Shell Willesden,Estate Cleaning Team,Supplies and Services Expenditure,40.01
07/03/2024,,LB of Brent,29/01/2024,Tesco Stores 2122,Smart Team,Supplies and Services Expenditure,34.61
07/03/2024,,LB of Brent,29/01/2024,Timpson Ltd,Bridge Park Facilities,Supplies and Services Expenditure,13.5
07/03/2024,,LB of Brent,29/01/2024,Costco Wholesale #128,Development Assurance Service,Supplies and Services Expenditure,294.36
07/03/2024,,LB of Brent,29/01/2024,Asda Groceries Online,Willows Nursery,Supplies and Services Expenditure,61.41
07/03/2024,,LB of Brent,29/01/2024,Sainsburys Wembley,Brent Family Solutions,Supplies and Services Expenditure,20
07/03/2024,,LB of Brent,29/01/2024,Lul Ticket Machine,Brent Family Solutions,Supplies and Services Expenditure,30
07/03/2024,,LB of Brent,29/01/2024,Lul Ticket Machine,Brent Family Solutions,Supplies and Services Expenditure,50
07/03/2024,,LB of Brent,29/01/2024,Lul Ticket Machine,Brent Family Solutions,Supplies and Services Expenditure,50
07/03/2024,,LB of Brent,29/01/2024,Lul Ticket Machine,Brent Family Solutions,Supplies and Services Expenditure,50
07/03/2024,,LB of Brent,29/01/2024,Lul Ticket Machine,Brent Family Solutions,Supplies and Services Expenditure,50
07/03/2024,,LB of Brent,29/01/2024,Amznmktplace,Quality and Business Rates,Stationery,7.99
07/03/2024,,LB of Brent,29/01/2024,Amznmktplace,Transformation Team,Stationery,15.99
07/03/2024,,LB of Brent,29/01/2024,Chartered Institute Of,Audit and Investigations,Human Resources,234
07/03/2024,,LB of Brent,29/01/2024,Www.Ipsea.Org.Uk,Legal Support,Financial Services,195
07/03/2024,,LB of Brent,29/01/2024,Tfl Roadchg Stdautopay,Building Cleaning,Supplies and Services Expenditure,875
07/03/2024,,LB of Brent,29/01/2024,Tvlicensing.Co.Uk,Bridge Park Facilities,Supplies and Services Expenditure,159
07/03/2024,,LB of Brent,29/01/2024,Amazon* 206-6046823-50,Operational Costs - Facilities,Supplies and Services Expenditure,397.99
07/03/2024,,LB of Brent,29/01/2024,Amazon* 204-1015023-82,Brent Family Solutions,Supplies and Services Expenditure,215.46
07/03/2024,,LB of Brent,30/01/2024,Moj Ospt Ecom,Housing Support Team,Supplies and Services Expenditure,40
07/03/2024,,LB of Brent,30/01/2024,Moj Ospt Ecom,Housing Support Team,Supplies and Services Expenditure,40
07/03/2024,,LB of Brent,30/01/2024,Moj Ospt Ecom,Housing Support Team,Supplies and Services Expenditure,40
07/03/2024,,LB of Brent,30/01/2024,Moj Ospt Ecom,Housing Support Team,Supplies and Services Expenditure,40
07/03/2024,,LB of Brent,30/01/2024,Moj Ospt Ecom,Housing Support Team,Supplies and Services Expenditure,40
07/03/2024,,LB of Brent,30/01/2024,Asda Superstore 04881,Willows Nursery,Supplies and Services Expenditure,16.15
07/03/2024,,LB of Brent,30/01/2024,Www.Argos.Co.Uk,Willows Nursery,Supplies and Services Expenditure,145
07/03/2024,,LB of Brent,30/01/2024,Adexa.Co.Uk,Willows Nursery,Supplies and Services Expenditure,802.8
07/03/2024,,LB of Brent,30/01/2024,Amazon* 204-8290154-28,Brent Family Solutions,Supplies and Services Expenditure,12.94
07/03/2024,,LB of Brent,30/01/2024,Amznmktplace,Brent Family Solutions,Supplies and Services Expenditure,22.49
07/03/2024,,LB of Brent,30/01/2024,Amazon* 204-7177572-22,Brent Family Solutions,Supplies and Services Expenditure,69.01
07/03/2024,,LB of Brent,30/01/2024,Premier Inn,Strategy and Partnerships,Client Subsistence,226.97
07/03/2024,,LB of Brent,30/01/2024,Premier Inn,Strategy and Partnerships,Client Subsistence,229.98
07/03/2024,,LB of Brent,30/01/2024,Www.Neurobox.Co.Uk,MOPAC Rescue and Response,Human Resources - Training and Conferences,414
07/03/2024,,LB of Brent,30/01/2024,Venngage.Com,Customer Insight,Financial Services,266.43
07/03/2024,,LB of Brent,30/01/2024,Amazon* 204-7177572-22,Brent Family Solutions,Supplies and Services Expenditure,49.2
07/03/2024,,LB of Brent,30/01/2024,Amazon* 204-7177572-22,Brent Family Solutions,Supplies and Services Expenditure,56.87
07/03/2024,,LB of Brent,31/01/2024,Tesco Stores 2122,Short Break Centre,Supplies and Services Expenditure,144.07
07/03/2024,,LB of Brent,31/01/2024,Zaks Shoe Service,TA Property Management,Supplies and Services Expenditure,16
07/03/2024,,LB of Brent,31/01/2024,Timpson Ltd,Bridge Park Facilities,Supplies and Services Expenditure,15
07/03/2024,,LB of Brent,31/01/2024,Ee Limited,Brent Music Service,Supplies and Services Expenditure,500
07/03/2024,,LB of Brent,31/01/2024,Dvla Vehicle Tax,Pest Control,Supplies and Services Expenditure,320
07/03/2024,,LB of Brent,31/01/2024,Tesco Gift Card,Brent Family Solutions,Supplies and Services Expenditure,45
07/03/2024,,LB of Brent,31/01/2024,Amznmktplace,Brent Family Solutions,Supplies and Services Expenditure,43.11
07/03/2024,,LB of Brent,31/01/2024,Asda Stores Ltd,Brent Family Solutions,Supplies and Services Expenditure,72
07/03/2024,,LB of Brent,31/01/2024,Amznmktplace,Brent Family Solutions,Supplies and Services Expenditure,201.38
07/03/2024,,LB of Brent,31/01/2024,Premier Inn,Strategy and Partnerships,Client Subsistence,130.98
07/03/2024,,LB of Brent,31/01/2024,Gear4music Limited,Brent Music Service,Supplies and Services Expenditure,16.99
07/03/2024,,LB of Brent,31/01/2024,Amazon* 204-2655716-45,Brent Family Solutions,Supplies and Services Expenditure,272.76
07/03/2024,,LB of Brent,31/01/2024,Amazon* 204-6664484-31,Brent Family Solutions,Supplies and Services Expenditure,359.39
07/03/2024,,LB of Brent,31/01/2024,Amazon* 204-8768200-64,Brent Family Solutions,Supplies and Services Expenditure,389.39
07/03/2024,,LB of Brent,01/02/2024,Flickr Pro Monthly,Digital Comms,Supplies and Services Expenditure,7.99
07/03/2024,,LB of Brent,01/02/2024,Amznmktplace,Brent Family Solutions,Supplies and Services Expenditure,98.45
07/03/2024,,LB of Brent,01/02/2024,Shell Kilburn,Estate Cleaning Team,Supplies and Services Expenditure,8.04
07/03/2024,,LB of Brent,01/02/2024,Lul Ticket Machine,Smart Team,Supplies and Services Expenditure,51
07/03/2024,,LB of Brent,01/02/2024,Amznmktplace,Housing Support Team,Supplies and Services Expenditure,6.99
07/03/2024,,LB of Brent,01/02/2024,Yorksurvey.Co.Uk,Head of Property Services,Supplies and Services Expenditure,64.2
07/03/2024,,LB of Brent,01/02/2024,Travelodge Gb0000,Housing Needs Accommodation Team,Supplies and Services Expenditure,145.01
07/03/2024,,LB of Brent,01/02/2024,Moj Ospt Ecom,Housing Support Team,Supplies and Services Expenditure,40
07/03/2024,,LB of Brent,01/02/2024,Google*gsuite Bmsstaff,Brent Music Service,Supplies and Services Expenditure,92
07/03/2024,,LB of Brent,01/02/2024,Prezzee/Gbda1dc32d,Brent Family Solutions,Supplies and Services Expenditure,25
07/03/2024,,LB of Brent,01/02/2024,Amazon* 204-3590047-53,Brent Family Solutions,Supplies and Services Expenditure,99.95
07/03/2024,,LB of Brent,01/02/2024,Amznmktplace,Gordon Brown Outdoor Education Centre,Supplies and Services Expenditure,14.75
07/03/2024,,LB of Brent,01/02/2024,Intellisoftware Ltd,IT Operations,Information Communication Technology,10
07/03/2024,,LB of Brent,01/02/2024,Www.Cips.Org,Brent Sicts,Information Communication Technology,60
07/03/2024,,LB of Brent,01/02/2024,Brent Council,Parish Liaison,Supplies and Services Expenditure,11
07/03/2024,,LB of Brent,01/02/2024,Amazon* 204-6769385-07,Brent Family Solutions,Supplies and Services Expenditure,71.88
07/03/2024,,LB of Brent,01/02/2024,Amazon* 204-6218293-94,Brent Family Solutions,Supplies and Services Expenditure,166.15
07/03/2024,,LB of Brent,01/02/2024,Amazon* 204-2244273-59,Brent Family Solutions,Supplies and Services Expenditure,199.89
07/03/2024,,LB of Brent,02/02/2024,Shell Kilburn,Estate Cleaning Team,Supplies and Services Expenditure,57.37
07/03/2024,,LB of Brent,02/02/2024,Dapper Drycleaners,Mayors Prev Yrs,Supplies and Services Expenditure,30
07/03/2024,,LB of Brent,02/02/2024,Travelodge Gb0000,Housing Needs Accommodation Team,Supplies and Services Expenditure,483.95
07/03/2024,,LB of Brent,02/02/2024,Amazon Prime,Willows Nursery,Supplies and Services Expenditure,7.49
07/03/2024,,LB of Brent,02/02/2024,Amznmktplace,Brent Family Solutions,Supplies and Services Expenditure,-9.73
07/03/2024,,LB of Brent,02/02/2024,Amazon* 204-2205410-52,Brent Family Solutions,Supplies and Services Expenditure,79.95
07/03/2024,,LB of Brent,02/02/2024,Amazon* 204-2624750-44,Brent Family Solutions,Supplies and Services Expenditure,213
07/03/2024,,LB of Brent,02/02/2024,Amazon.Co.Uk,Quality and Business Rates,Stationery,19.99
07/03/2024,,LB of Brent,02/02/2024,Amazon.Co.Uk,Customer Service,Stationery,67.99
07/03/2024,,LB of Brent,02/02/2024,Amazon* 205-2788325-79,Community Hubs,Stationery,89.9
07/03/2024,,LB of Brent,02/02/2024,Amazon* 205-6701647-11,Civic Centre - Av,Stationery,174.6
07/03/2024,,LB of Brent,02/02/2024,Amazon* 204-1046226-39,Brent Family Solutions,Supplies and Services Expenditure,212.81
07/03/2024,,LB of Brent,03/02/2024,Tesco Stores 2122,Short Break Centre,Supplies and Services Expenditure,72.32
07/03/2024,,LB of Brent,03/02/2024,British Gas Online,NAIL Property Management,Supplies and Services Expenditure,82.5
07/03/2024,,LB of Brent,03/02/2024,British Gas Online,NAIL Property Management,Supplies and Services Expenditure,82.5
07/03/2024,,LB of Brent,03/02/2024,British Gas Online,NAIL Property Management,Supplies and Services Expenditure,82.5
07/03/2024,,LB of Brent,03/02/2024,British Gas Online,NAIL Property Management,Supplies and Services Expenditure,82.5
07/03/2024,,LB of Brent,03/02/2024,Www.Argos.Co.Uk,TA Property Management,Supplies and Services Expenditure,90.79
07/03/2024,,LB of Brent,03/02/2024,Amazon* 204-5706025-17,Brent Family Solutions,Supplies and Services Expenditure,298
07/03/2024,,LB of Brent,03/02/2024,Amazon.Co.Uk,Brent Family Solutions,Supplies and Services Expenditure,444.87
07/03/2024,,LB of Brent,03/02/2024,Amazon* 204-2913579-61,Brent Family Solutions,Supplies and Services Expenditure,293.99
07/03/2024,,LB of Brent,04/02/2024,Amznmktplace,Brent Family Solutions,Supplies and Services Expenditure,42.96
07/03/2024,,LB of Brent,04/02/2024,Amazon.Co.Uk,Brent Family Solutions,Supplies and Services Expenditure,497.65
07/03/2024,,LB of Brent,04/02/2024,Amznmktplace,Gordon Brown Outdoor Education Centre,Supplies and Services Expenditure,34.94
07/03/2024,,LB of Brent,05/02/2024,Amznmktplace,Gordon Brown Outdoor Education Centre,Supplies and Services Expenditure,9.99
07/03/2024,,LB of Brent,05/02/2024,Amznmktplace,Gordon Brown Outdoor Education Centre,Supplies and Services Expenditure,5.7
07/03/2024,,LB of Brent,05/02/2024,Amznmktplace,Gordon Brown Outdoor Education Centre,Supplies and Services Expenditure,8
07/03/2024,,LB of Brent,05/02/2024,Microsoft G037915676,IT Operations,Supplies and Services Expenditure,4.9
07/03/2024,,LB of Brent,05/02/2024,Dyetts Locks & Keys,Estate Cleaning Team,Supplies and Services Expenditure,25
07/03/2024,,LB of Brent,05/02/2024,Tesco Store 2670,Gordon Brown Outdoor Education Centre,Supplies and Services Expenditure,18.35
07/03/2024,,LB of Brent,05/02/2024,Www.Hsj.Co.Uk,Member Services,Supplies and Services Expenditure,249
07/03/2024,,LB of Brent,05/02/2024,Travelodge Gb0000,Housing Needs Accommodation Team,Supplies and Services Expenditure,91.01
07/03/2024,,LB of Brent,05/02/2024,Amznmktplace,Brent Family Solutions,Supplies and Services Expenditure,6.66
07/03/2024,,LB of Brent,05/02/2024,Amznmktplace,Brent Family Solutions,Supplies and Services Expenditure,-34.99
07/03/2024,,LB of Brent,05/02/2024,Prezzee/Gbaaf54e9d,Brent Family Solutions,Supplies and Services Expenditure,50
07/03/2024,,LB of Brent,05/02/2024,Amznmktplace,Brent Family Solutions,Supplies and Services Expenditure,352.83
07/03/2024,,LB of Brent,05/02/2024,Amznmktplace,Brent Family Solutions,Supplies and Services Expenditure,389.39
07/03/2024,,LB of Brent,05/02/2024,Tesco Stores 2080,Gordon Brown Outdoor Education Centre,Supplies and Services Expenditure,163.66
07/03/2024,,LB of Brent,05/02/2024,Sportsdirect.Com,Afghan Resettlement Scheme,Supplies and Services Expenditure,184.99
07/03/2024,,LB of Brent,06/02/2024,Amazon.Co.Uk,Cemeteries Admin,Stationery,17.99
07/03/2024,,LB of Brent,06/02/2024,Ikea Ltd 461 Reading Main,Gordon Brown Outdoor Education Centre,Supplies and Services Expenditure,340
07/03/2024,,LB of Brent,06/02/2024,Ikea Ltd 461 Reading Main,Gordon Brown Outdoor Education Centre,Supplies and Services Expenditure,982
07/03/2024,,LB of Brent,06/02/2024,Travelodge Gb0000,Housing Needs Accommodation Team,Supplies and Services Expenditure,96.01
07/03/2024,,LB of Brent,06/02/2024,Travelodge Gb0000,Housing Needs Accommodation Team,Supplies and Services Expenditure,458.43
07/03/2024,,LB of Brent,06/02/2024,Travelodge Gb0000,Housing Needs Accommodation Team,Supplies and Services Expenditure,647.43
07/03/2024,,LB of Brent,06/02/2024,Asda Groceries Online,Willows Nursery,Supplies and Services Expenditure,-2
07/03/2024,,LB of Brent,06/02/2024,Asda Groceries Online,Willows Nursery,Supplies and Services Expenditure,103.84
07/03/2024,,LB of Brent,06/02/2024,Www.Theworks.Co.Uk,Childrens Social Care Business Support,Supplies and Services Expenditure,120
07/03/2024,,LB of Brent,06/02/2024,Oyster Telesales 1st Issu,Brent Family Solutions,Supplies and Services Expenditure,7
07/03/2024,,LB of Brent,06/02/2024,Amazon* 204-8768200-64,Brent Family Solutions,Supplies and Services Expenditure,-34.99
07/03/2024,,LB of Brent,06/02/2024,Oyster Online,Brent Family Solutions,Supplies and Services Expenditure,50
07/03/2024,,LB of Brent,06/02/2024,Amznmktplace,Southwark Sicts Consumables,Supplies and Services Expenditure,16.62
07/03/2024,,LB of Brent,06/02/2024,Amazon* 205-0965129-52,Legal Support,Stationery,25.99
07/03/2024,,LB of Brent,06/02/2024,Amazon* 205-8999995-37,Legal Support,Stationery,171.8
07/03/2024,,LB of Brent,06/02/2024,Amazon* 204-5372684-13,Brent Family Solutions,Supplies and Services Expenditure,69.9
07/03/2024,,LB of Brent,07/02/2024,Brent Parking,Estate Cleaning Team,Supplies and Services Expenditure,9
07/03/2024,,LB of Brent,07/02/2024,Arrow Electrical Crick,Estate Cleaning Team,Supplies and Services Expenditure,10.16
07/03/2024,,LB of Brent,07/02/2024,Zaks Shoe Service,NAIL Property Management,Supplies and Services Expenditure,9.5
07/03/2024,,LB of Brent,07/02/2024,Www.Ico.Org.Uk,Gordon Brown Outdoor Education Centre,Supplies and Services Expenditure,60
07/03/2024,,LB of Brent,07/02/2024,Www.Screwfix.Com,Gordon Brown Outdoor Education Centre,Supplies and Services Expenditure,965.51
07/03/2024,,LB of Brent,07/02/2024,Cieem.Net,Development Control,Supplies and Services Expenditure,480
07/03/2024,,LB of Brent,07/02/2024,Travelodge Gb0000,Housing Needs Accommodation Team,Supplies and Services Expenditure,89.01
07/03/2024,,LB of Brent,07/02/2024,Hmctslondoncse077,Debt and Income,Supplies and Services Expenditure,1305.5
07/03/2024,,LB of Brent,07/02/2024,Tesco Gift Card,Brent Family Solutions,Supplies and Services Expenditure,20
07/03/2024,,LB of Brent,07/02/2024,Prezzee/Gb97f4aa2a,Brent Family Solutions,Supplies and Services Expenditure,50
07/03/2024,,LB of Brent,07/02/2024,Dmn/Queensskatedinebow,Brent Family Solutions,Supplies and Services Expenditure,132
07/03/2024,,LB of Brent,07/02/2024,Inflata Nation London,Brent Family Solutions,Supplies and Services Expenditure,286.87
07/03/2024,,LB of Brent,07/02/2024,Tesco Stores 2080,Gordon Brown Outdoor Education Centre,Supplies and Services Expenditure,167.49
07/03/2024,,LB of Brent,07/02/2024,Amazon Prime,Brent Sicts,Supplies and Services Expenditure,7.49
07/03/2024,,LB of Brent,07/02/2024,Hotel Crown,Emergency Planning,Supplies and Services Expenditure,758.33
07/03/2024,,LB of Brent,07/02/2024,Hotel Crown,Emergency Planning,Supplies and Services Expenditure,833.33
07/03/2024,,LB of Brent,07/02/2024,Hotel Crown,Emergency Planning,Supplies and Services Expenditure,1666.67
07/03/2024,,LB of Brent,07/02/2024,Hotel Crown,Emergency Planning,Supplies and Services Expenditure,1666.67
07/03/2024,,LB of Brent,08/02/2024,Harrow Arts Centre,Short Break Centre,Supplies and Services Expenditure,7
07/03/2024,,LB of Brent,08/02/2024,Tesco Stores 2122,Short Break Centre,Supplies and Services Expenditure,-7.04
07/03/2024,,LB of Brent,08/02/2024,Tesco Stores 2122,Short Break Centre,Supplies and Services Expenditure,100.09
07/03/2024,,LB of Brent,08/02/2024,Www.Adass.Org.Uk,Development Assurance Service,Supplies and Services Expenditure,755
07/03/2024,,LB of Brent,08/02/2024,Amazon Prime,Childrens Social Care Business Support,Supplies and Services Expenditure,7.49
07/03/2024,,LB of Brent,08/02/2024,Currys Staples Crner,Afghan Resettlement Scheme,Supplies and Services Expenditure,380
07/03/2024,,LB of Brent,08/02/2024,Www.Reddrivingschool.Com,Afghan Resettlement Scheme,Supplies and Services Expenditure,403.49
07/03/2024,,LB of Brent,08/02/2024,Companieshouse Web Filing,Legal Support,Supplies and Services Expenditure,15
07/03/2024,,LB of Brent,08/02/2024,Dvla Vehicle Tax,Trading Standards - Fixed Costs,Supplies and Services Expenditure,320
07/03/2024,,LB of Brent,08/02/2024,Oyster Online,Brent Family Solutions,Supplies and Services Expenditure,50
07/03/2024,,LB of Brent,08/02/2024,Nintendo Ca1150026392,Brent Family Solutions,Supplies and Services Expenditure,50
07/03/2024,,LB of Brent,08/02/2024,Oyster Online,Brent Family Solutions,Supplies and Services Expenditure,50
07/03/2024,,LB of Brent,08/02/2024,Oyster Online,Brent Family Solutions,Supplies and Services Expenditure,50
07/03/2024,,LB of Brent,08/02/2024,Oyster Online,Brent Family Solutions,Supplies and Services Expenditure,50
07/03/2024,,LB of Brent,09/02/2024,Amznmktplace,Cemeteries Admin,Stationery,33.98
07/03/2024,,LB of Brent,09/02/2024,Amznmktplace,Cemeteries Admin,Stationery,29.99
07/03/2024,,LB of Brent,09/02/2024,Amznmktplace,Warm Spaces Grants,Stationery,9.79
07/03/2024,,LB of Brent,09/02/2024,Amazon* 205-2932473-67,Civic Centre Conference and Events,Stationery,19.99
07/03/2024,,LB of Brent,09/02/2024,Amznmktplace,Warm Spaces Grants,Stationery,21.57
07/03/2024,,LB of Brent,09/02/2024,Amznmktplace,Warm Spaces Grants,Stationery,29.95
07/03/2024,,LB of Brent,09/02/2024,Amznmktplace,Warm Spaces Grants,Stationery,79.95
07/03/2024,,LB of Brent,09/02/2024,Marks&spencer Plc,Afghan Resettlement Scheme,Social Community Care Supplies and Services - Adult,363.33
07/03/2024,,LB of Brent,10/02/2024,Amazon.Co.Uk,Legal Support,Stationery,70
07/03/2024,,LB of Brent,11/02/2024,Amznmktplace,Warm Spaces Grants,Stationery,16.86
07/03/2024,,LB of Brent,11/02/2024,Amznmktplace,Warm Spaces Grants,Stationery,54.95
07/03/2024,,LB of Brent,11/02/2024,Amazon.Co.Uk,Commercial Portfolio,Stationery,89.8
07/03/2024,,LB of Brent,12/02/2024,Amznmktplace,Warm Spaces Grants,Stationery,41.75
07/03/2024,,LB of Brent,12/02/2024,Amazon.Co.Uk,Transformation Team,Stationery,89.99
07/03/2024,,LB of Brent,12/02/2024,Stationeryu,Digital Post Room,Stationery,49.72
07/03/2024,,LB of Brent,12/02/2024,Amznmktplace,Paddington Cemetry,Stationery,28.5
07/03/2024,,LB of Brent,12/02/2024,Amznmktplace,Paddington Cemetry,Stationery,29.55
07/03/2024,,LB of Brent,12/02/2024,Amazon* 206-8393821-03,Revenues,Stationery,59.99
07/03/2024,,LB of Brent,13/02/2024,Namesco,IT Operations,Information Communication Technology,5.99
07/03/2024,,LB of Brent,13/02/2024,Amznmktplace,Chief Execs,Stationery,22.89
07/03/2024,,LB of Brent,14/02/2024,1password,IT Operations,Information Communication Technology,22.55
07/03/2024,,LB of Brent,15/02/2024,Www.Argos.Co.Uk,Homes for Ukraine Scheme,Client Subsistence,248.95
07/03/2024,,LB of Brent,15/02/2024,Amznmktplace,Physical Activity - Adults,Stationery,7.89
07/03/2024,,LB of Brent,15/02/2024,Amznmktplace,Physical Activity - Adults,Stationery,11.4
07/03/2024,,LB of Brent,15/02/2024,Amazon.Co.Uk,Political Group Support,Stationery,18
07/03/2024,,LB of Brent,15/02/2024,Amazon.Co.Uk,Assessment,Stationery,30.19
07/03/2024,,LB of Brent,15/02/2024,Amznmktplace,Cemeteries Admin,Stationery,119.88
07/03/2024,,LB of Brent,16/02/2024,1password,IT Operations,Information Communication Technology,22.39
07/03/2024,,LB of Brent,16/02/2024,Amznmktplace,Physical Activity - Adults,Stationery,11.99
07/03/2024,,LB of Brent,16/02/2024,Timpson Ltd,Civic Centre Conference and Events,Facilities and Management Services,13.5
07/03/2024,,LB of Brent,18/02/2024,Amznmktplace,HMO Licensing,Stationery,151.81
07/03/2024,,LB of Brent,19/02/2024,Amazon* 026-0359261-59,Legal Support,Stationery,14.99
07/03/2024,,LB of Brent,21/02/2024,1password,IT Operations,Information Communication Technology,21.8
07/03/2024,,LB of Brent,21/02/2024,Amznmktplace,Parking Schemes,Stationery,4.54
07/03/2024,,LB of Brent,21/02/2024,Amznmktplace,Parking Schemes,Stationery,9.99
07/03/2024,,LB of Brent,21/02/2024,Amazon* 026-8722590-63,Civic Centre Conference and Events,Stationery,60.76
07/03/2024,,LB of Brent,22/02/2024,1password,IT Operations,Information Communication Technology,43.28
07/03/2024,,LB of Brent,22/02/2024,Posturite Ltd,Information Governance,Stationery,1369.48
07/03/2024,,LB of Brent,22/02/2024,Zoro Uk,ASC Occupational Therapy Team,Stationery,89.97
07/03/2024,,LB of Brent,23/02/2024,Speedy Couriers,Resident Services Corporate Director,Mail Services,100.26
07/03/2024,,LB of Brent,26/02/2024,Brent Council,Parish Liaison,Financial Services,11
07/03/2024,,LB of Brent,27/02/2024,Amznmktplace,Legal Support,Stationery,10.25
07/03/2024,,LB of Brent,27/02/2024,Amznmktplace,Legal Support,Stationery,10.25
07/03/2024,,LB of Brent,27/02/2024,Tfl Travel Ch,Parish Liaison,Financial Services,7.33
07/03/2024,,LB of Brent,28/02/2024,Amznmktplace,Legal Support,Stationery,10.25
07/03/2024,,LB of Brent,28/02/2024,Deliveroo,Corporate Procurement Unit,Catering,83.12
07/03/2024,,LB of Brent,28/02/2024,Amznmktplace,Climate Emergency Budget,Stationery,26.98
